Cogmind - Beta 13 X2 @@@ ROGUE MODE // 2024.01.13 @ 21:57:11 Player: cptwinky Result: Destroyed by G-73 Enforcer with Phase Gun Performance ------------- Evolutions (9) 4500 Regions Visited (34) 6800 Robots Destroyed (646) 3230 Value Destroyed (32792) 32792 Prototype IDs (77) 1540 Alien Tech Used (3) 600 Bonus (18377) 18377 TOTAL SCORE: 67839 Bonus ------- High Alert Combat Kills 8325 Follower Combat Kills 3202 Entered Garrisons 800 Network Hubs Disabled 200 Met Data Miner 300 Met Warlord at Base 500 MAIN.C Attacked Warlord 500 Warlord Defense Kills 3676 Built Enhanced Grunts 300 A7 Reached Mainframe 300 Met R17 at Cetus 500 Friendly Fire -226 Cogmind --------- Core Integrity 0/1600 Matter 300/300 Energy 100/100 System Corruption 9% Temperature Cool (9) Movement Core (50) Location -1/Access Parts ------- > --- POWER (3) -------- (None) > --- PROPULSION (6) --- (None) > --- UTILITY (13) ----- Advanced Targeting Computer Advanced Target Analyzer Experimental Core Analyzer Experimental Core Analyzer Graphene Brace Advanced Corruption Screen > --- WEAPON (3) ------- (None) > --- INVENTORY (5) ---- Experimental Energy Well (600) Hypercooled Linear Accelerator Advanced Remote Datajack Core Stripper Peak State ------------ > --- POWER ------------ Micro Antimatter Reactor Micro Antimatter Reactor Quantum Reactor > --- PROPULSION ------- Armored Heavy Treads Biometal Heavy Treads Biometal Heavy Treads > --- UTILITY ---------- Advanced Heat Sink Advanced Heat Sink Advanced Cooling System Huge Storage Unit Advanced Signal Interpreter Advanced Targeting Computer Advanced Target Analyzer Experimental Core Analyzer Experimental Core Analyzer Improved Core Shielding Centrium Medium Armor Plating Improved System Shield Advanced Corruption Screen > --- WEAPON ----------- Hardcell Cannon Core Stripper > --- INVENTORY -------- Biometal Heavy Treads Experimental Energy Well Enhanced Optical Array Energy Filter Advanced Transmission Jammer Improved Core Shielding Improved Core Shielding Graphene Brace Advanced Hacking Suite Advanced Corruption Screen Advanced Corruption Screen Transdimensional Reconstructor High-powered Transdimensional Reconstructor Subatomic Replicator Compact HERF Cannon Hardcell Cannon Linear Accelerator Compact Linear Accelerator Hypercooled Linear Accelerator Advanced Remote Datajack Plasma Lance [Rating: 209] Favorites ----------- Power Neutrino Core Engine Reinforced Deuterium Engine Power Core Neutrino Core Reactor Cold Fusion Reactor Propulsion Light Treads Treads Light Treads Leg Carbon-fiber Leg Wheel Compact Wheel Hover Unit Combat Airjet Flight Unit Cooled Impulse Thruster Utility Huge Storage Unit Device Advanced Heat Sink Storage Huge Storage Unit Processor Advanced Signal Interpreter Hackware Advanced Hacking Suite Protection Powered Armor Artifact Phase Redirector Weapon Mini Assault Cannon Energy Gun Advanced Beam Rifle Energy Cannon Enhanced Nova Cannon Ballistic Gun Shotgun Ballistic Cannon Mini Assault Cannon Launcher Missile Launcher Impact Weapon Power Maul Piercing Weapon Plasma Lance Special Melee Weapon Datajack Build | -11 -10 -10 -10 -9 -8 -8 -8 -7 -7 -7 -7 -6 -6 -6 -5 -5 -5 -5 -5 -5 -5 -5 -5 -5 -5 -4 -4 -4 -4 -3 -3 -3 -2 -1 ------- Run | Yrd Mat Min Exi Min Mat Gar Mat Fac Low Low Dat Pro Fac Gar Fac Was Fac Gar Fac Gar Fac Ext Cet Arc Hub Fac Upp Upp War Pro Res Qua Res Acc Slots Evolved 18 | . . . . . 4 . . 2 . . . . 2 . 2 . . . . . . . . . . 2 . . . . 2 . 2 2 Power 2 | . . . . . . . . . . . . . 1 . . . . . . . . . . . . . . . . . 1 . . . Propulsion 4 | . . . . . 1 . . 1 . . . . . . 1 . . . . . . . . . . 1 . . . . . . . . Utility 11 | . . . . . 3 . . 1 . . . . 1 . 1 . . . . . . . . . . 1 . . . . 1 . 2 1 Weapon 1 | . . . . . . . . . . . . . . . . . . . . . . . . . . . . . . . . . . 1 Parts Attached 760 | 3 11 10 3 3 45 28 34 45 14 29 1 18 3 18 5 . 36 7 25 20 29 14 9 17 . 65 5 16 31 7 47 53 41 68 Power 58 | . 1 1 . . 2 2 4 1 . 2 . . 1 1 . . 7 1 1 1 2 4 . . . 6 . 1 1 . 2 6 4 7 Engine 18 | . 1 1 . . 2 2 3 . . 2 . . 1 1 . . 3 . . 1 1 . . . . . . . . . . . . . Core 14 | . . . . . . . 1 1 . . . . . . . . 3 . 1 . 1 4 . . . 2 . . . . 1 . . . Reactor 26 | . . . . . . . . . . . . . . . . . 1 1 . . . . . . . 4 . 1 1 . 1 6 4 7 Propulsion 108 | 2 2 1 . 1 10 4 7 6 3 3 . 1 . 3 1 . 6 2 1 3 1 4 3 7 . 6 . 2 4 . 7 5 6 7 Treads 88 | 2 1 1 . . 8 4 7 6 3 3 . 1 . . 1 . . 2 1 3 1 4 2 6 . 5 . 1 1 . 7 5 6 7 Leg 8 | . 1 . . . . . . . . . . . . 3 . . . . . . . . 1 1 . 1 . . 1 . . . . . Wheel 4 | . . . . 1 2 . . . . . . . . . . . . . . . . . . . . . . 1 . . . . . . Hover 7 | . . . . . . . . . . . . . . . . . 6 . . . . . . . . . . . 1 . . . . . Flight 1 | . . . . . . . . . . . . . . . . . . . . . . . . . . . . . 1 . . . . . Utility 337 | . 3 . 1 . 11 6 9 25 9 12 . 10 2 7 4 . 16 1 18 15 23 4 1 7 . 27 5 8 13 3 28 22 17 30 Device 228 | . 1 . . . 1 3 4 16 9 10 . 10 . 4 2 . 10 . 13 15 17 3 . 6 . 19 4 5 9 2 24 18 9 14 Storage 10 | . 1 . 1 . 1 . . . . . . . . . 1 . 1 . 1 . . . . 1 . . . . 2 . 1 . . . Processor 25 | . 1 . . . 1 . 1 1 . 1 . . 1 . 1 . 3 . . . 1 . . . . 2 . 3 2 . 1 . 2 4 Hackware 13 | . . . . . 1 . . . . . . . 1 . . . 1 . 3 . 5 . . . . . . . . . . . 1 1 Protection 59 | . . . . . 7 3 4 8 . 1 . . . 3 . . 1 1 1 . . 1 1 . . 6 1 . . 1 2 2 5 11 Artifact 2 | . . . . . . . . . . . . . . . . . . . . . . . . . . . . . . . . 2 . . Weapon 257 | 1 5 8 2 2 22 16 14 13 2 12 1 7 . 7 . . 7 3 5 1 3 2 5 3 . 26 . 5 13 4 10 20 14 24 Energy Gun 15 | 1 1 . . . 1 1 5 . . 1 . . . . . . 1 . . . . 1 1 1 . . . 1 . . . . . . Energy Cannon 60 | . . . . . . . . . . . . 1 . . . . 3 . 2 . 2 . 1 1 . 10 . 3 1 3 6 5 10 12 Ballistic Gun 35 | . 4 5 1 1 14 8 1 . . . . . . . . . . . . . . . . . . . . . . . . . 1 . Ballistic Cannon 74 | . . . . . . . 4 8 1 6 . 4 . 4 . . 3 2 3 1 1 1 1 1 . 11 . . 7 . 1 9 2 4 Launcher 52 | . . 1 . 1 3 5 2 3 1 3 1 2 . 1 . . . 1 . . . . 2 . . 5 . . 4 1 3 6 . 7 Special Weapon . | . . . . . . . . . . . . . . . . . . . . . . . . . . . . . . . . . . . Impact Weapon 10 | . . 2 . . 2 2 . . . 1 . . . 2 . . . . . . . . . . . . . . . . . . . 1 Slashing Weapon . | . . . . . . . . . . . . . . . . . . . . . . . . . . . . . . . . . . . Piercing Weapon 1 | . . . . . . . . . . . . . . . . . . . . . . . . . . . . . . . . . 1 . Special Melee Weapon 10 | . . . 1 . 2 . 2 2 . 1 . . . . . . . . . . . . . . . . . 1 1 . . . . . Unidentified Prototypes 29 | . . . . . 2 . 1 . . . . . . . . . 2 . . . . . 3 4 . . . . 6 . 1 5 4 1 Corrupted Parts 7 | . . . . . . . . . . . . . . . . . . . 1 . . . 1 2 . . . . . . . 3 . . System Corruption 22 | . . . . . . . . . . . . . . . . . . . 3 . . . 1 10 . . . . . . . 8 . . Parts Lost 129 | . 2 2 . 1 4 6 2 1 1 1 . 1 . 3 . 2 1 5 . 6 5 6 . . . 20 2 4 . . 4 9 . 41 Power 26 | . . 1 . . . 1 1 . . . . . . . . . . 1 . . 2 2 . . . 5 . 1 . . 2 3 . 7 Propulsion 27 | . 1 1 . 1 2 2 . . 1 . . 1 . 2 . 1 . . . 1 1 1 . . . 3 . . . . . 1 . 8 Utility 56 | . . . . . 2 1 1 1 . . . . . 1 . 1 1 3 . 5 1 2 . . . 9 2 3 . . 1 3 . 19 Weapon 20 | . 1 . . . . 2 . . . 1 . . . . . . . 1 . . 1 1 . . . 3 . . . . 1 2 . 7 Highest Loss Streak 18 | . 1 1 . 1 2 4 2 1 1 1 . 1 . 2 . 2 1 2 . 4 3 2 . . . 6 2 2 . . 3 4 . 18 To Critical Strikes 2 | . . . . . . . . . . . . . . . . . . . . . . 1 . . . 1 . . . . . . . . Average Slot Usage (%) 90 | . 97 99 100 99 99 99 92 94 99 100 100 100 100 98 92 59 84 74 83 86 86 87 89 87 88 81 74 77 77 78 81 83 84 82 Engine 4 | . 14 13 14 14 9 9 8 . . 6 7 7 13 12 11 7 3 . . . 4 . . . . . . . 2 . . . . . Core 2 | . . . . . . . . 7 7 . . . . . . . 3 1 1 4 1 10 11 11 11 4 5 5 3 . 1 . . . Reactor 2 | . . . . . . . . . . . . . . . . . 2 9 9 5 3 . . . . 4 . 2 1 5 5 11 11 11 Treads 21 | . 27 28 28 19 24 26 27 29 29 30 30 30 26 13 11 7 . 3 16 16 17 17 17 17 17 13 15 15 14 15 17 15 15 10 Device 12 | . . . . . . 4 9 7 15 8 7 7 6 2 9 7 13 14 21 28 26 20 17 21 23 17 19 20 20 15 15 13 13 10 Storage 6 | . 14 14 14 14 9 9 9 7 7 7 7 7 6 6 5 3 3 5 5 5 5 5 5 5 5 5 5 5 5 5 4 4 4 3 Processor 11 | . 10 14 14 14 9 9 9 15 15 21 23 23 20 20 17 10 9 5 5 3 4 5 5 5 5 7 6 7 6 10 12 14 14 17 Hackware 6 | . . . . . 8 9 9 6 . . . . 6 6 5 3 1 3 4 5 6 11 11 11 11 10 10 10 10 10 9 9 10 9 Protection 5 | . . . . . 16 13 8 7 7 7 7 7 6 10 5 3 9 3 5 1 . 1 5 . . 4 1 . . 4 4 3 3 8 Energy Cannon 1 | . . . . . . . . . . . . . . . . . . . . . 2 5 . 3 5 3 . 7 6 9 8 4 6 9 Ballistic Gun 3 | . 25 27 16 27 16 11 2 . . . . . . . . . . . . . . . . . . . . . . . . . . . Ballistic Cannon 6 | . . . . . . . 6 10 14 14 7 11 13 10 5 3 4 4 7 10 8 3 6 5 5 5 10 1 3 . . 2 1 1 Naked Turns 63 | . . . . . . . . . . . . . . . . 36 27 . . . . . . . . . . . . . . . . . Heaviest Build 182 | 12 31 31 49 49 110 112 117 126 114 120 116 120 123 138 134 134 55 76 133 133 128 143 138 133 127 149 110 119 161 161 182 170 176 179 Greatest Support 240 | 40 40 40 40 40 60 65 64 96 104 104 88 88 88 88 45 45 59 150 180 180 160 183 183 188 160 240 230 230 230 230 230 220 210 210 Greatest Overweight (x) 42 | . . 1 1 4 3 1 1 1 1 1 1 1 1 3 2 2 . 2 . . . . 1 42 . 1 . . . . 1 1 1 2 Average Overweight (x) . | . . . . 3 1 1 1 1 1 1 1 1 1 1 2 . . . . . . . . 7 . . . . . . . . . . Largest Inventory Capacity 35 | 8 15 15 20 20 25 25 25 25 25 25 25 25 25 25 25 25 10 10 25 25 25 25 25 25 25 25 25 25 35 25 25 25 25 25 Average Capacity 23 | 8 12 15 15 20 20 25 25 25 25 25 25 25 25 25 25 18 8 10 14 25 25 25 25 25 25 25 25 25 25 25 25 25 25 24 Most Carried 25 | 6 15 15 15 15 25 25 25 25 25 25 25 25 24 25 25 24 10 10 15 25 25 25 25 25 25 25 25 25 25 24 25 25 25 25 Average Carried 22 | 6 8 13 14 14 19 22 24 24 24 24 25 24 23 24 24 17 8 8 10 23 21 23 24 24 24 22 23 24 24 23 24 23 24 23 Final Capacity 25 | 8 15 15 20 20 25 25 25 25 25 25 25 25 25 25 25 5 10 10 25 25 25 25 25 25 25 25 25 25 25 25 25 25 25 5 Final Carried 25 | 6 15 14 15 15 25 25 23 25 25 25 25 24 24 25 24 5 10 10 14 25 22 24 25 24 25 21 24 25 24 24 24 25 25 5 Class Distribution -------------------- 46% | Scavenger-Mutant 24% | Hacker-Mutant 23% | Mutant Dominant Class ---------------- Mutant | -10/Materials Mutant | -10/Mines Scavenger-Mutant | -10/Exiles Mutant | -9/Mines Scavenger-Mutant | -8/Materials Scavenger-Mutant | -8/Garrison Mutant | -8/Materials Scavenger-Mutant | -7/Factory Scavenger-Mutant | -7/Lower Caves Scavenger-Mutant | -7/Lower Caves Scavenger-Mutant | -7/Data Miner Scavenger-Mutant | -6/Proximity Caves Scavenger-Mutant | -6/Factory Scavenger-Mutant | -6/Garrison Scavenger-Mutant | -5/Factory Scavenger-Mutant | -5/Waste Mutant | -5/Factory Mutant | -5/Garrison Scavenger-Mutant | -5/Factory Scavenger-Mutant | -5/Garrison Scavenger-Mutant | -5/Factory Hacker-Mutant | -5/Extension Commander-Mutant | -5/Cetus Hacker-Mutant | -5/Archives Hacker-Mutant | -5/Hub_04(d) Scavenger-Mutant | -4/Factory Hacker-Mutant | -4/Upper Caves Hacker-Mutant | -4/Upper Caves Hacker-Mutant | -4/Warlord Hacker-Mutant | -3/Proximity Caves Hacker-Mutant | -3/Research Scavenger-Mutant | -3/Quarantine Hacker-Mutant | -2/Research Hacker-Gunner | -1/Access Resources | -11 -10 -10 -10 -9 -8 -8 -8 -7 -7 -7 -7 -6 -6 -6 -5 -5 -5 -5 -5 -5 -5 -5 -5 -5 -5 -4 -4 -4 -4 -3 -3 -3 -2 -1 ----------- Run | Yrd Mat Min Exi Min Mat Gar Mat Fac Low Low Dat Pro Fac Gar Fac Was Fac Gar Fac Gar Fac Ext Cet Arc Hub Fac Upp Upp War Pro Res Qua Res Acc Matter Collected 18689 | 230 441 385 10 97 1452 584 1038 1357 333 829 . 355 . 743 . 206 706 132 905 909 658 393 138 208 . 1529 268 192 962 64 635 1027 725 1178 Remotely 692 | . . . . . . . . . . . . . . . . . . . 95 597 . . . . . . . . . . . . . . Salvage Created 27040 | . 706 232 . 182 1752 954 1393 1947 222 475 . 394 . 279 20 . 506 115 669 404 397 428 162 299 . 2106 122 329 1211 150 2342 1655 971 6618 Parts 1240 | . 48 14 . 8 106 52 79 106 7 23 . 16 . 14 4 . 12 5 39 22 16 13 5 21 . 86 . 8 32 5 116 64 30 289 Haulers Intercepted 18 | . 2 . . . 6 . 2 1 . . . . . . . . 2 . . . . . . . . . . . . . 2 1 1 1 Recyclers Shooed 17 | . . . . . 2 . 2 2 . . . . . . . . 1 . 2 . 3 . . . . 4 . . . . 1 . . . Parts Field Recycled . | . . . . . . . . . . . . . . . . . . . . . . . . . . . . . . . . . . . Retrieved Matter . | . . . . . . . . . . . . . . . . . . . . . . . . . . . . . . . . . . . Parts Self-Destructed 45 | . . . . . . . . . 12 15 . 10 . . . . . . . . . . . . . . . 8 . . . . . . Prevented 5 | . . . . . . . . . . . . . . . . . . . . . . . . . . . . . . 5 . . . . Kills | -11 -10 -10 -10 -9 -8 -8 -8 -7 -7 -7 -7 -6 -6 -6 -5 -5 -5 -5 -5 -5 -5 -5 -5 -5 -5 -4 -4 -4 -4 -3 -3 -3 -2 -1 ------- Run | Yrd Mat Min Exi Min Mat Gar Mat Fac Low Low Dat Pro Fac Gar Fac Was Fac Gar Fac Gar Fac Ext Cet Arc Hub Fac Upp Upp War Pro Res Qua Res Acc Combat Hostiles Destroyed 500 | . 13 11 . 3 38 26 31 42 8 14 . 17 . 11 . . 3 7 8 18 7 8 1 . . 41 1 5 26 2 32 35 14 78 Melee 3 | . . . . . 1 . . . . . . . . . . . . 1 . . . . . . . . . . . . 1 . . . Guns 69 | . 11 8 . 1 27 15 6 . . . . . . . . . . . . . . 1 . . . . . . . . . . . . Cannons 234 | . . . . . . . 21 31 5 6 . 4 . 9 . . 2 2 8 18 6 6 . . . 27 1 2 9 2 16 12 5 42 AOE 141 | . 2 3 . 2 8 11 4 11 3 8 . 13 . 2 . . . 4 . . . . . . . 11 . . 17 . 12 19 . 11 Classes Destroyed 26 | . 7 3 . . 3 1 4 2 . 1 . . . 2 . . . . . . . . . . . . . . 1 . . . 1 1 Worker 36 | . 2 1 . . . . 4 9 . . . . . . . . 1 . 4 . . . . . . 9 . . . . . . . 6 Builder 22 | . . 1 . . 3 . . 4 . . . . . . . . . . 1 . 1 1 . . . 3 . . . . 1 . . 7 Tunneler 4 | . . 1 . . . . . . . . . . . . . . . . . . 1 1 . . . . . . . . 1 . . . Hauler 18 | . 2 . . . 6 . 2 1 . . . . . . . . 2 . . . . . . . . . . . . . 2 1 1 1 Recycler 24 | . 1 . . 1 2 . 1 7 . . . . . . . . 2 . 2 . 1 . . . . 1 . . . . 3 . . 3 Mechanic 9 | . . . . . . . 1 . . . . . . . . . . . 1 . 2 . . . . 2 . . . . . 1 . 2 Operator 16 | . 2 . . . . . 1 . . . . . . . . . 1 . 1 . . 1 . 9 . . . . . . 1 . . . Watcher 24 | . 3 . . . 4 . 3 . . . . . . . 2 . . . 1 . 1 . 1 . . 1 . . . . 4 1 . 3 Swarmer 87 | . 3 . . . 11 4 . 4 2 3 . 7 . 3 . . . 4 2 6 . 2 . . . . . . . . 12 5 3 16 Cutter 6 | . . . . . . 2 . . . . . . . . . . . . . 4 . . . . . . . . . . . . . . Saboteur 1 | . . . . . . . . . . . . . . . . . . . . . . . . . . . . . . . . . . 1 Grunt 199 | . 10 4 . 3 16 15 19 22 3 4 . 7 . 4 . . . 2 . 3 2 2 . . . 19 . . 20 . 2 18 3 21 Brawler 15 | . . . . . . . 2 2 1 1 . . . . . . . . . 1 1 . . . . . . . 1 . . 1 . 5 Duelist 10 | . . . . . 1 2 . 1 . . . . . . . . . . 1 . . . . . . . . . . . . . . 5 Protector 4 | . . . . . . . . 1 . . . . . 1 . . . . . . . . . . . . . . 1 . . . . 1 Sentry 51 | . . . . . 9 3 6 5 2 . . 1 . . . . 3 . 1 3 1 2 . . . 4 . 1 . . 1 6 . 3 Demolisher 2 | . . . . . . . . . . . . . . 1 . . . . . . . . . . . . . . . . . . 1 . Specialist 4 | . . . . . . . 2 . . . . . . . . . . 1 . . . . . . . . . . 1 . . . . . Hunter 39 | . . . . . 1 . 1 3 . . . 2 . . . . . . 1 . 1 2 . . . 10 . 4 . 2 4 . . 8 Programmer 52 | . . . . . . . . 4 . . . . . 1 . . . . 2 1 2 . . . . 8 . . 2 . 13 3 . 16 Heavy 3 | . . . . . . . 1 . . . . . . . . . . . . . . . . . . . . . . . . . . 2 Behemoth 2 | . . . . . . . . . . . . . . 1 . . . . 1 . . . . . . . . . . . . . . . Cetus Guard 1 | . . . . . . . . . . . . . . . . . . . . . . . 1 . . . . . . . . . . . Quarantine Guard 2 | . . . . . . . . . . . . . . . . . . . . . . . . . . . . . . . . 2 . . Striker 6 | . . . . . . . . . . . . . . . . . . . . . . . . . . . . . . . . . 6 . Executioner 2 | . . . . . . . . . . . . . . . . . . . . . . . . . . . . . 1 . . . 1 . Packrat 1 | . . . . . . . . . . . . . . . . . . . . . . . . . . . 1 . . . . . . . Assembled 7 | . . 7 . . . . . . . . . . . . . . . . . . . . . . . . . . . . . . . . Thug 5 | . . . . . . . . . . 5 . . . . . . . . . . . . . . . . . . . . . . . . Butcher 1 | . . . . . . . . . . . . . . . . . . . . . . . 1 . . . . . . . . . . . Mutant 2 | . . . . . . . . . . 1 . . . . . . . . . . . . . . . . 1 . . . . . . . Best Kill Streak 15 | . 5 4 . 4 7 7 6 15 6 3 . 5 . 3 2 . 2 4 6 5 4 2 2 4 . 9 1 2 12 2 10 7 8 11 Combat Bots Only 12 | . 5 3 . 3 6 7 4 5 6 3 . 5 . 3 . . 1 4 3 5 3 2 1 . . 5 1 2 12 2 9 6 8 9 Max Kills in Single Turn 13 | . 1 2 . 1 3 2 2 13 2 3 . 3 . 2 1 . 1 3 1 1 2 2 1 1 . 5 1 1 3 1 5 3 1 5 Gunslinging 1 | . . . . . 1 . . . . . . . . . . . . . . . . . . . . . . . . . . . . . Exploded 5 | . 1 1 . 1 3 2 2 3 2 3 . 3 . 2 . . . 3 . . . . . . . 2 . . 3 . 5 3 . 3 Melee 1 | . . . . . 1 . . . . . . . . . . . . 1 . . . . . . . . . . . . 1 . . . Uniques/NPCs Destroyed . | . . . . . . . . . . . . . . . . . . . . . . . . . . . . . . . . . . . Combat | -11 -10 -10 -10 -9 -8 -8 -8 -7 -7 -7 -7 -6 -6 -6 -5 -5 -5 -5 -5 -5 -5 -5 -5 -5 -5 -4 -4 -4 -4 -3 -3 -3 -2 -1 -------- Run | Yrd Mat Min Exi Min Mat Gar Mat Fac Low Low Dat Pro Fac Gar Fac Was Fac Gar Fac Gar Fac Ext Cet Arc Hub Fac Upp Upp War Pro Res Qua Res Acc Hostile Shots Fired 3382 | . 65 26 . 6 148 118 127 212 64 38 . 83 . 55 . 3 45 156 54 124 110 65 10 4 5 476 26 94 87 44 176 207 56 698 Missed 993 | . 16 6 . . 44 31 39 66 25 12 . 29 . 20 . 1 21 66 15 32 25 20 7 2 2 149 2 30 23 13 52 61 12 172 Damage Taken 45468 | . 634 269 . 71 1449 1349 1655 1970 519 431 . 628 . 715 . 113 517 1798 462 1490 1684 1092 84 55 78 5327 284 991 1312 387 1922 3821 1208 13153 Core 3904 | . 89 . . . 64 140 115 111 30 38 . 56 . 83 . 24 65 39 44 115 198 33 . . . 310 . 88 69 18 168 263 121 1623 Absorbed by Shields 3951 | . . . . . 80 70 . 360 116 72 . 176 . 60 . . . 18 142 486 . 117 23 . . 309 . 136 328 160 850 284 164 . Reduced by Siege Mode 1322 | . . . . . . . . . . . . . . . . . . . 36 197 . 168 . . . 173 23 113 . . 11 80 48 473 Redirected to Core 153 | . . . . . . . . . . . . . . . . . . . . . . . . . . . . . . . . 113 40 . Redirected to Shielding 549 | . . . . . . . . . . . . . . . . . . . . . . . . . . 114 103 . . . . . . 332 Ignored by Resistances 468 | . . . . . . 20 . . . . . . . . . . . . 4 . . . . . . 444 . . . . . . . . Regen/Repaired (Parts) 3149 | . . . . . 104 . 249 236 . . . . . . . . . . . . 672 . . . . 76 . . 816 . 655 341 . . Core Remaining (%) 69 | 100 . . . 64 . . 42 . . . . 66 . 90 . . . . . . . . . . 48 . . . . 57 . 66 91 . Volleys Fired 1575 | . 60 23 . 6 112 64 111 89 17 44 . 28 . 35 5 13 44 15 43 73 47 45 6 53 1 149 12 20 51 14 100 93 37 165 Largest 3 | . 2 2 . 2 2 2 2 2 2 2 . 2 . 2 1 1 2 1 2 2 2 2 2 2 1 2 2 2 2 2 2 2 2 3 Hottest 305 | . 80 46 . 46 46 84 84 96 96 96 . 96 . 96 75 75 81 75 173 106 173 201 129 105 90 210 114 186 120 176 210 176 162 305 Shots Fired 2543 | . 120 42 . 10 215 119 150 134 30 65 . 41 . 58 5 13 45 15 68 131 78 84 9 56 1 253 24 36 77 20 143 139 71 291 Gun 641 | . 120 38 . 8 206 110 77 . . 14 . . . . . . 2 . . . . 6 . 51 . . . 9 . . . . . . Cannon 1761 | . . . . . . . 68 125 26 47 . 30 . 57 5 13 43 13 68 131 78 78 6 5 1 233 24 27 61 20 138 121 71 272 Launcher 141 | . . 4 . 2 9 9 5 9 4 4 . 11 . 1 . . . 2 . . . . 3 . . 20 . . 16 . 5 18 . 19 Special . | . . . . . . . . . . . . . . . . . . . . . . . . . . . . . . . . . . . Kinetic 1491 | . 90 38 . 8 206 77 106 125 26 47 . 26 . 57 5 13 39 13 54 131 53 35 3 5 . 118 24 6 52 2 7 43 18 64 Thermal 694 | . 6 . . . . 33 39 . . . . . . . . . 2 . 14 . 25 49 . 51 1 90 . 30 9 8 121 56 6 154 Explosive 119 | . . 4 . 2 9 9 5 9 4 4 . 11 . 1 . . . 2 . . . . . . . 20 . . 16 . 5 18 . . Electromagnetic 239 | . 24 . . . . . . . . 14 . 4 . . . . 4 . . . . . 6 . . 25 . . . 10 10 22 47 73 Robot Hit Streak 34 | . 10 16 . 5 32 27 21 13 6 8 . 11 . 11 1 8 11 5 11 23 17 22 8 8 . 18 27 34 8 4 21 28 16 20 Robot Miss Streak 5 | . 4 4 . 3 3 2 3 5 2 4 . 3 . 2 3 . 2 1 1 3 2 3 . 2 . 4 . 3 3 1 3 2 2 4 Penetration Max 1 | . . . . . . . 1 1 . . . . . . . . 1 . . . . . . . . 1 . . 1 . . 1 1 . Secondary Targets 8 | . . 2 . . 4 2 . . . . . . . . . . . . . . . . . . . . . . . . . . . . Max Gunslinging Chain 1 | . . 1 . . 1 1 . . . . . . . . . . . . . . . . . . . . . . . . . . . . Shots Hit Robots 1742 | . 89 27 4 7 186 90 115 77 18 44 1 27 . 34 1 7 31 9 45 87 53 58 7 39 . 149 22 27 43 9 94 99 49 194 Core Hits 1245 | . 42 25 . 8 116 57 58 79 16 32 . 39 . 20 2 . 8 8 25 32 20 23 15 20 2 110 5 9 77 4 63 86 19 225 Critical Kills 13 | . . . . . . . . . . . . . . . . . . . . . 1 1 . . . . . 2 . . 2 3 1 3 Critical Parts Destroyed 14 | . . . . . 3 1 . . . . . . . . . . . . . . . . . 1 . 1 . . . . . 7 1 . Critical Strikes 118 | . . . . . 3 5 12 13 1 1 . 1 . 3 . . 5 . 3 3 6 3 1 1 . 8 3 3 7 . 3 18 4 11 Burn 7 | . . . . . . 4 3 . . . . . . . . . . . . . . . . . . . . . . . . . . . Meltdown 10 | . . . . . . . . . . . . . . . . . . . . . 1 1 . . . . . 2 . . 2 1 . 3 Destroy 19 | . . . . . . 1 . . . . . . . . . . . . . . . . . 1 . 1 . . . . . 14 2 . Blast 76 | . . . . . . . 9 13 1 1 . 1 . 3 . . 5 . 3 3 5 2 1 . . 7 3 1 7 . 1 3 2 5 Corrupt 3 | . . . . . . . . . . . . . . . . . . . . . . . . . . . . . . . . . . 3 Smash 3 | . . . . . 3 . . . . . . . . . . . . . . . . . . . . . . . . . . . . . Melee Attacks 37 | . . 5 4 . 11 2 . 1 . 1 1 . . 7 . . . . . . . . . . . . . . 2 . . . . 3 Kinetic 3 | . . . . . . . . . . . . . . . . . . . . . . . . . . . . . . . . . . 3 Impact 26 | . . 5 . . 11 2 . . . 1 . . . 7 . . . . . . . . . . . . . . . . . . . . Slashing . | . . . . . . . . . . . . . . . . . . . . . . . . . . . . . . . . . . . Piercing . | . . . . . . . . . . . . . . . . . . . . . . . . . . . . . . . . . . . Sneak Attacks 8 | . . . 4 . . . . 1 . . 1 . . . . . . . . . . . . . . . . . 2 . . . . . Combat Hostiles . | . . . . . . . . . . . . . . . . . . . . . . . . . . . . . . . . . . . Follow-up Attacks . | . . . . . . . . . . . . . . . . . . . . . . . . . . . . . . . . . . . Damage Inflicted 82989 | . 1288 672 . 278 4020 2594 5247 5824 835 1594 . 1839 . 1041 178 542 2059 1179 1873 2617 2095 2420 740 1192 50 10073 739 872 5040 335 5408 6784 1713 11848 Guns 8399 | . 1140 430 . 114 2623 1485 1120 . . 102 . . . . . . . . . . . 120 . 1103 . . . 162 . . . . . . Cannons 45865 | . . . . . . . 3302 2733 461 811 . 472 . 897 77 542 2059 641 1829 2615 1951 2253 167 89 . 5360 739 710 1343 335 3833 2793 1629 8224 Explosions 27115 | . 132 209 . 164 937 1109 731 2965 374 681 . 1367 . 144 101 . . 488 . . . . 573 . . 4647 . . 3697 . 1371 3948 84 3393 Melee 529 | . . . . . 422 . . . . . . . . . . . . . . . . . . . . . . . . . . . . 107 Ramming 1081 | . 16 33 . . 38 . 94 126 . . . . . . . . . 50 44 2 144 47 . . 50 66 . . . . 204 43 . 124 Kinetic 32012 | . 960 430 . 114 2623 969 3756 2733 461 811 . 384 . 897 77 542 1943 641 1473 2615 1219 854 80 89 . 2492 739 192 1343 56 263 978 374 1904 Thermal 19244 | . 188 . . . . 516 666 1253 . . . . . . . . . . 356 . 732 1519 191 1103 . 2476 . 680 . . 3222 1264 84 4994 Explosive 21377 | . . 209 . 164 937 1109 731 1665 374 681 . 1367 . 144 101 . . 488 . . . . . . . 4391 . . 3697 . 1371 3948 . . Electromagnetic 8853 | . 124 . . . . . . 47 . 102 . 88 . . . . 116 . . . . . 469 . . 648 . . . 279 348 551 1255 4826 Impact 422 | . . . . . 422 . . . . . . . . . . . . . . . . . . . . . . . . . . . . . Slashing . | . . . . . . . . . . . . . . . . . . . . . . . . . . . . . . . . . . . Piercing . | . . . . . . . . . . . . . . . . . . . . . . . . . . . . . . . . . . . Highest Corruption 14 | . . . . . . 1 4 2 . . . . . . . 6 7 11 14 4 4 . 1 9 1 5 1 . 5 . 8 12 2 9 Average Corruption 4 | . . . . . . 1 1 1 . . . . . . . 6 6 7 10 1 2 . 1 3 1 1 1 . 2 . 3 4 2 6 Corruption Purged 80 | . . . . . . 1 4 5 . . . . . . . . . . 14 5 9 . . 11 . 7 1 . 5 . 4 7 . 7 Corruption Blocked 59 | . . . . . . . . . . . . . . . . . . . . . . . . . . . . . . . . . 39 20 Effects 213 | . . . . . . 3 1 4 . . . . . . . 3 26 13 47 8 6 . 2 5 . 7 . . 2 . 20 27 5 34 Message Errors 42 | . . . . . . 1 . . . . . . . . . 1 2 3 12 1 2 . . 2 . 2 . . 1 . 5 5 . 5 Matter Fused 52 | . . . . . . . . 2 . . . . . . . . 10 4 12 3 1 . 1 1 . . . . . . 4 8 1 5 Heat Flow Errors 17 | . . . . . . 1 . 1 . . . . . . . 1 1 . 3 . . . . . . . . . . . 4 2 . 4 Energy Discharges 28 | . . . . . . . . . . . . . . . . . 4 2 4 2 1 . . 1 . 1 . . 1 . 1 4 2 5 Parts Rejected 10 | . . . . . . . . . . . . . . . . . 2 1 1 . . . . . . 1 . . . . 1 2 . 2 Parts Fused 1 | . . . . . . . . . . . . . . . . . . . 1 . . . . . . . . . . . . . . . Data Loss (minor) 30 | . . . . . . . . 1 . . . . . . . 1 6 2 5 1 2 . . . . . . . . . 3 4 . 5 Data Loss (major) 7 | . . . . . . . . . . . . . . . . . 1 1 2 . . . 1 . . 2 . . . . . . . . Misfires 12 | . . . . . . . 1 . . . . . . . . . . . 5 . . . . 1 . 1 . . . . . 1 2 1 Alerts 3 | . . . . . . 1 . . . . . . . . . . . . 1 . . . . . . . . . . . . . . 1 Misdirections 1 | . . . . . . . . . . . . . . . . . . . 1 . . . . . . . . . . . . . . . Weapon Failures 10 | . . . . . . . . . . . . . . . . . . . . 1 . . . . . . . . . . 2 1 . 6 Overload Shots . | . . . . . . . . . . . . . . . . . . . . . . . . . . . . . . . . . . . Overflow Damage 2763 | . . . . . 171 . 245 450 28 . . 18 . 21 . 9 213 82 188 37 118 29 6 . . 426 27 21 51 . 211 99 32 281 Projectiles 1774 | . . . . . . . 245 120 1 . . 18 . 21 . 9 213 35 188 37 118 17 . . . 295 27 21 4 . 107 . 32 266 Explosions 777 | . . . . . 5 . . 330 27 . . . . . . . . 47 . . . . 6 . . 131 . . 47 . 76 99 . 9 Melee 212 | . . . . . 166 . . . . . . . . . . . . . . . . 12 . . . . . . . . 28 . . 6 Knockbacks 153 | . . . . . 4 . 16 10 3 6 . 4 . 2 . . 5 4 14 14 14 2 . 1 . 17 . . 6 . 3 5 3 20 Impact 9 | . . . . . 4 . 1 . . . . . . . . . . . 2 . 1 . . . . . . . . . 1 . . . Kinetic 140 | . . . . . . . 15 10 3 6 . 4 . 2 . . 5 4 12 14 13 2 . 1 . 16 . . 6 . 2 4 3 18 Secondary 4 | . . . . . . . . . . . . . . . . . . . . . . . . . . 1 . . . . . 1 . 2 Self-Inflicted Damage 1382 | . 37 . . . 19 38 . 273 . . . . . . . . . 7 . 86 . . . . . 125 . . . . . 332 . 465 Shots 54 | . 1 . . . 1 2 . 7 . . . . . . . . . . . 1 . . . . . 7 . . . . . 6 . 29 Rammed 103 | . 5 5 . . 4 . 7 12 . . . . . . . . . 7 5 1 10 3 . . 5 6 . . . . 7 6 . 20 Targets Rammed 115 | . 6 6 . . 4 . 9 13 . . . . . . . . . 8 6 1 11 3 . . 5 8 . . . . 8 6 . 21 Kicked . | . . . . . . . . . . . . . . . . . . . . . . . . . . . . . . . . . . . Crushed 12 | . 1 1 . . . . 2 1 . . . . . . . . . 1 1 . 1 . . . . 2 . . . . 1 . . 1 Highest Temperature 492 | . 144 24 . 10 49 339 20 201 . 195 . 250 . 270 116 246 400 57 492 . . 342 . . . 60 . 195 184 . 415 300 1 397 Average Temperature 76 | . 45 12 . 4 18 56 6 51 . 55 . 76 . 71 52 134 87 20 216 . . 81 . . . 12 . 117 82 . 94 92 1 112 Received Heat Transfer 7470 | . 294 129 . 39 638 636 621 489 136 171 . 142 . 160 . . 45 315 18 237 171 524 13 . 27 750 . 45 185 6 166 529 57 927 Effects 13 | . . . . . . . . . . . . . . . . . . . 1 . . . . . . . . . . . 6 2 . 4 Shutdowns 2 | . . . . . . . . . . . . . . . . . . . . . . . . . . . . . . . 1 . . 1 Energy Bleed 1 | . . . . . . . . . . . . . . . . . . . 1 . . . . . . . . . . . . . . . Interference 10 | . . . . . . . . . . . . . . . . . . . . . . . . . . . . . . . 5 2 . 3 Siege Activations 50 | . . . . . . . . . . . . . . . . . . . 4 6 . 4 . . . 6 1 3 . . 8 7 1 10 Total Turns 910 | . . . . . . . . . . . . . . . . . . . 108 160 . 86 . . . 93 24 48 . . 102 96 32 161 Longest Duration 53 | . . . . . . . . . . . . . . . . . . . 53 37 . 37 . . . 24 24 23 . . 27 31 32 33 Robots Corrupted 41 | . . . . . . . . . . . . . . . . . 1 . . . . . 1 . . 3 . . . . 1 3 9 23 Combat Hostiles 41 | . . . . . . . . . . . . . . . . . 1 . . . . . 1 . . 3 . . . . 1 3 9 23 Parts Fried 79 | . 1 . . . 1 . . . . . . . . . . . 1 . . . . . 4 . . 9 . . . 2 2 4 11 44 Impact Corruptions 13 | . . . . . 8 . . . . . . . . . . . . . . . . 1 . . . . . . . . 2 . . 2 Robots Melted 11 | . . . . . . . . . . . . . . . . . . . . . 1 1 . . . . . 3 . . 2 1 . 3 Combat Hostiles 9 | . . . . . . . . . . . . . . . . . . . . . 1 1 . . . . . 3 . . 2 1 . 1 Parts Melted 45 | . 1 . . . . 2 1 . . . . . . . . . . . . . 1 1 . 5 . 1 . 5 . . 13 . . 15 Heat Transferred 16707 | . 225 . . . . 1184 1406 800 . . . . . . . . . . 296 . 555 1369 50 1369 . 533 . 957 . . 2886 1295 50 3732 Parts Sabotaged . | . . . . . . . . . . . . . . . . . . . . . . . . . . . . . . . . . . . Parts Stolen . | . . . . . . . . . . . . . . . . . . . . . . . . . . . . . . . . . . . Parts Stripped 16 | . . . . . . . . . . . . . . . . . . . . . . . . . . . . . . . . . . 16 Power Chain Reactions 11 | . 2 . . . . . . 1 . . . . . . . . . . . . . . 1 . . 1 . . . . . . 1 5 Missiles Intercepted . | . . . . . . . . . . . . . . . . . . . . . . . . . . . . . . . . . . . Alert | -11 -10 -10 -10 -9 -8 -8 -8 -7 -7 -7 -7 -6 -6 -6 -5 -5 -5 -5 -5 -5 -5 -5 -5 -5 -5 -4 -4 -4 -4 -3 -3 -3 -2 -1 ------- Run | Yrd Mat Min Exi Min Mat Gar Mat Fac Low Low Dat Pro Fac Gar Fac Was Fac Gar Fac Gar Fac Ext Cet Arc Hub Fac Upp Upp War Pro Res Qua Res Acc Peak Influence 1939 | . 222 110 . 82 536 1366 963 1205 . . . . 25 372 327 131 307 515 367 1067 902 755 777 530 219 1563 . . . . 825 1118 644 1939 Initial 665 | . . 1 . . 31 348 665 307 . . . . 25 25 195 114 84 156 270 33 560 195 375 302 . 107 . . . . . 449 609 312 Average 444 | . 97 32 . 47 308 864 587 512 . . . . 25 270 237 115 175 422 133 554 657 229 558 238 65 835 . . . . 216 797 560 937 Maximum Alert Level 5 | . 1 . . . 2 4 3 4 . . . . . 1 1 . 1 2 1 3 3 3 3 2 1 4 . . . . 3 4 2 5 Low Security (%) 30 | 100 82 100 . 100 15 . . 22 . . . . 100 17 67 100 63 2 71 21 . 57 . 54 92 9 . . . . 67 . . . Level 1 22 | . 17 . . . 73 11 1 29 . . . . . 82 32 . 36 46 28 10 3 32 9 25 7 2 . . . . 15 . . 22 Level 2 27 | . . . . . 10 21 87 21 . . . . . . . . . 50 . 25 64 6 63 20 . 37 . . . . 3 35 100 14 Level 3 12 | . . . . . . 44 10 13 . . . . . . . . . . . 43 32 2 27 . . 11 . . . . 13 52 . 29 Level 4 5 | . . . . . . 23 . 13 . . . . . . . . . . . . . . . . . 39 . . . . . 10 . 16 Level 5 . | . . . . . . . . . . . . . . . . . . . . . . . . . . . . . . . . . . 16 High Security . | . . . . . . . . . . . . . . . . . . . . . . . . . . . . . . . . . . . Max Security . | . . . . . . . . . . . . . . . . . . . . . . . . . . . . . . . . . . . Squads Dispatched 84 | . 4 . . . 5 . 7 9 . . . . 1 . 1 . 4 . 5 . 7 3 . . 2 11 . . . . 4 5 . 16 Investigation 20 | . 1 . . . 2 . 2 3 . . . . 1 . . . 1 . 3 . 1 1 . . 2 1 . . . . . . . 2 Extermination 21 | . . . . . . . . 4 . . . . . . 1 . 1 . 1 . 2 . . . . 4 . . . . 4 1 . 3 Reinforcement 21 | . 3 . . . 2 . 4 1 . . . . . . . . 2 . . . . 2 . . . 3 . . . . . . . 4 Assault 15 | . . . . . 1 . 1 1 . . . . . . . . . . . . 2 . . . . 3 . . . . . 1 . 6 Garrison 7 | . . . . . . . . . . . . . . . . . . . 1 . 2 . . . . . . . . . . 3 . 1 Intercept . | . . . . . . . . . . . . . . . . . . . . . . . . . . . . . . . . . . . Searches Triggered . | . . . . . . . . . . . . . . . . . . . . . . . . . . . . . . . . . . . Data Miner Redirects 1 | . . . . . . . . . . . . . . . . . . . . . . . . . . 1 . . . . . . . . Construction Impeded 5 | . . . . . . . 1 1 . . . . . . . . . . . . . . . . . 2 . . . . . . . 1 Haulers Reinforced 3 | . . . . . . . . . . . . . . . . . 2 . . . . . . . . . . . . . . . . 1 Active Scanning Responses . | . . . . . . . . . . . . . . . . . . . . . . . . . . . . . . . . . . . Cargo Convoy Interrupts . | . . . . . . . . . . . . . . . . . . . . . . . . . . . . . . . . . . . Stealth | -11 -10 -10 -10 -9 -8 -8 -8 -7 -7 -7 -7 -6 -6 -6 -5 -5 -5 -5 -5 -5 -5 -5 -5 -5 -5 -4 -4 -4 -4 -3 -3 -3 -2 -1 --------- Run | Yrd Mat Min Exi Min Mat Gar Mat Fac Low Low Dat Pro Fac Gar Fac Was Fac Gar Fac Gar Fac Ext Cet Arc Hub Fac Upp Upp War Pro Res Qua Res Acc Distress Signals 29 | . 1 . . . 2 . 3 1 . . . . . . . . . . . . . 1 2 . . . . . . . 1 4 8 6 Communications Jammed 125 | . . . . . . . . . . . . . . . . . 45 27 . . 6 . . . . . . . . . 39 8 . . Distress Signals 122 | . . . . . . . . . . . . . . . . . 43 27 . . 6 . . . . . . . . . 39 7 . . Times Spotted 813 | . 25 13 . 3 61 27 52 50 13 19 . 13 . 13 1 3 20 13 12 28 21 40 10 21 4 64 1 5 44 6 44 40 16 131 Peak Tracking Total 17 | . 5 3 . 3 9 5 4 5 7 7 . 5 . 5 1 3 4 6 3 6 5 6 5 1 3 6 1 2 11 4 6 7 5 17 Tactical Retreats 34 | . . 2 . . 1 1 2 2 . . . . . 1 . . 3 5 . 3 1 . . . . 2 . . 1 . 2 1 . 7 Traps | -11 -10 -10 -10 -9 -8 -8 -8 -7 -7 -7 -7 -6 -6 -6 -5 -5 -5 -5 -5 -5 -5 -5 -5 -5 -5 -4 -4 -4 -4 -3 -3 -3 -2 -1 ------- Run | Yrd Mat Min Exi Min Mat Gar Mat Fac Low Low Dat Pro Fac Gar Fac Was Fac Gar Fac Gar Fac Ext Cet Arc Hub Fac Upp Upp War Pro Res Qua Res Acc Traps Triggered 28 | . 1 . . . . 4 3 2 . . . . 2 3 1 . 1 2 3 . 2 . . . . 2 . . . . 1 . . 1 Indirectly . | . . . . . . . . . . . . . . . . . . . . . . . . . . . . . . . . . . . Trap Hack Attempts 193 | . . . . . 80 . 77 36 . . . . . . . . . . . . . . . . . . . . . . . . . . Triggered 1 | . . . . . . . 1 . . . . . . . . . . . . . . . . . . . . . . . . . . . Disarmed 6 | . . . . . 2 . . . . . . . . . . . . . . . . 4 . . . . . . . . . . . . Reprogrammed 27 | . . . . . 12 . 10 5 . . . . . . . . . . . . . . . . . . . . . . . . . . Reused 6 | . . 2 . . 1 . 1 2 . . . . . . . . . . . . . . . . . . . . . . . . . . Traps Extracted . | . . . . . . . . . . . . . . . . . . . . . . . . . . . . . . . . . . . Installed 4 | . . 3 . . . . . . . . . . . . . . . . . . . . . . . . . . 1 . . . . . Triggered 9 | . . . . . 1 . 1 2 . . . . . . . . . . . . . . . . . . . 1 4 . . . . . Most Traps Carried 3 | . . 3 . . . . . . . . . . . . . . . . . . . . . . . . . 1 1 . . . . . Machines | -11 -10 -10 -10 -9 -8 -8 -8 -7 -7 -7 -7 -6 -6 -6 -5 -5 -5 -5 -5 -5 -5 -5 -5 -5 -5 -4 -4 -4 -4 -3 -3 -3 -2 -1 ---------- Run | Yrd Mat Min Exi Min Mat Gar Mat Fac Low Low Dat Pro Fac Gar Fac Was Fac Gar Fac Gar Fac Ext Cet Arc Hub Fac Upp Upp War Pro Res Qua Res Acc Machines Disabled 100 | . 1 . . . 3 4 3 13 1 . . . . 4 4 . 4 1 1 7 3 5 2 2 2 22 1 . . . 1 14 . 2 Max in Single Turn 7 | . 1 . . . 1 1 1 7 1 . . . . 1 4 . 1 1 1 2 1 1 . . 1 4 1 . . . 1 2 . 1 Garrison Access 5 | . . . . . . . . . . . . . . . . . 1 . . . 2 . . . . . . . . . . . 2 . Garrison Relay 9 | . . . . . . 3 . . . . . . . 2 . . . . . 4 . . . . . . . . . . . . . . Phase Generator 1 | . . . . . . . . . . . . . . . . . . . . 1 . . . . . . . . . . . . . . Network Hub 1 | . . . . . . . . . . . . . . . . . . . . . . . . . 1 . . . . . . . . . Machines Repaired . | . . . . . . . . . . . . . . . . . . . . . . . . . . . . . . . . . . . Machines Dismantled . | . . . . . . . . . . . . . . . . . . . . . . . . . . . . . . . . . . . Machines Sabotaged 1 | . . . . . . . . . . . . . . . . . . . . . . . . . 1 . . . . . . . . . Overloaded Fab Kills . | . . . . . . . . . . . . . . . . . . . . . . . . . . . . . . . . . . . Hacking | -11 -10 -10 -10 -9 -8 -8 -8 -7 -7 -7 -7 -6 -6 -6 -5 -5 -5 -5 -5 -5 -5 -5 -5 -5 -5 -4 -4 -4 -4 -3 -3 -3 -2 -1 --------- Run | Yrd Mat Min Exi Min Mat Gar Mat Fac Low Low Dat Pro Fac Gar Fac Was Fac Gar Fac Gar Fac Ext Cet Arc Hub Fac Upp Upp War Pro Res Qua Res Acc Machines Accessed 115 | . 7 . 1 . 13 3 14 9 . . 3 . 1 1 . . 10 1 6 3 9 8 1 . 3 6 . 2 1 . 6 3 1 3 Terminals 66 | . 5 . . . 8 3 9 5 . . . . . 1 . . 6 1 2 3 4 6 1 . 3 2 . . . . 3 2 . 2 Fabricators 7 | . . . . . . . . 2 . . . . . . . . 1 . 1 . 1 . . . . 1 . . . . . . . 1 Repair Stations 12 | . 1 . . . 1 . 2 1 . . . . . . . . 1 . 1 . 1 . . . . 1 . . . . 2 1 . . Recycling Units 12 | . 1 . . . 2 . 1 1 . . . . . . . . . . 1 . 1 2 . . . 2 . . . . 1 . . . Scanalyzers 3 | . . . . . 1 . 2 . . . . . . . . . . . . . . . . . . . . . . . . . . . Garrison Access 8 | . . . . . 1 . . . . . . . 1 . . . 2 . 1 . 2 . . . . . . . . . . . 1 . Total Hacks 383 | . 16 . 1 . 42 7 50 20 . . 26 . 3 3 . . 29 2 18 7 33 25 4 . 6 33 . 2 4 . 25 13 3 11 Successful 196 | . 5 . 1 . 22 1 29 11 . . 26 . 1 3 . . 7 . 14 2 18 16 1 . 3 14 . 2 4 . 9 4 1 2 Failed 186 | . 11 . . . 19 6 21 9 . . . . 2 . . . 22 2 4 5 15 9 3 . 3 19 . . . . 16 9 2 9 Catastrophic 48 | . 2 . . . 5 3 10 2 . . . . . . . . 7 1 . . 2 1 1 . 3 4 . . . . 2 3 . 2 Database Lockouts 1 | . . . . . 1 . . . . . . . . . . . . . . . . . . . . . . . . . . . . . Manual 160 | . 12 . . . 18 . 24 5 . . . . 2 2 . . 21 . 7 1 18 18 1 . 4 7 . . 1 . 12 . . 7 Terminals 219 | . 12 . . . 24 7 34 11 . . . . . 3 . . 21 2 6 7 16 21 4 . 6 13 . . . . 14 10 . 8 Fabricators 26 | . . . . . . . . 5 . . . . . . . . 1 . 4 . 9 . . . . 4 . . . . . . . 3 Repair Stations 37 | . 2 . . . 4 . 7 2 . . . . . . . . 1 . 3 . 1 . . . . 7 . . . . 7 3 . . Recycling Units 33 | . 2 . . . 3 . 2 2 . . . . . . . . . . 3 . 4 4 . . . 9 . . . . 4 . . . Scanalyzers 12 | . . . . . 5 . 7 . . . . . . . . . . . . . . . . . . . . . . . . . . . Garrison Access 23 | . . . . . 6 . . . . . . . 3 . . . 6 . 2 . 3 . . . . . . . . . . . 3 . Terminal Hacks 96 | . 3 . 1 . 9 1 14 5 . . 26 . . 1 . . 1 . 3 2 4 6 1 . 2 5 . 2 4 . 2 2 . 2 Record 7 | . . . 1 . . . . . . . 6 . . . . . . . . . . . . . . . . . . . . . . . Part Schematic 11 | . . . . . . . . . . . 10 . . . . . . . 1 . . . . . . . . . . . . . . . Robot Schematic 8 | . . . . . . . . . . . 7 . . . . . . . . . . . . . . 1 . . . . . . . . Robot Analysis 6 | . 3 . . . 2 . 1 . . . . . . . . . . . . . . . . . . . . . . . . . . . Prototype ID Bank 10 | . . . . . 1 . 1 1 . . 3 . . . . . . . . . . . . . . . . . 4 . . . . . Open Door 3 | . . . . . . . . . . . . . . . . . . . . . . . 1 . . . . 2 . . . . . . Branch Access Points 4 | . . . . . . . . 1 . . . . . . . . . . . . 1 . . . . . . . . . 1 . . 1 Emergency Access Points 1 | . . . . . . . . . . . . . . 1 . . . . . . . . . . . . . . . . . . . . Terminal Index 1 | . . . . . . . . . . . . . . . . . . . . . . 1 . . . . . . . . . . . . Garrison Index 1 | . . . . . . . . . . . . . . . . . . . . . . . . . . . . . . . 1 . . . Alert Level 3 | . . . . . . . 1 . . . . . . . . . . . . . . 1 . . . 1 . . . . . . . . Unreport Threat 14 | . . . . . 1 . 4 3 . . . . . . . . . . 1 . 2 . . . . . . . . . . 2 . 1 Locate Traps 10 | . . . . . 1 . 3 . . . . . . . . . 1 . 1 . 1 2 . . 1 . . . . . . . . . Disarm Traps 1 | . . . . . . . . . . . . . . . . . . . . . . 1 . . . . . . . . . . . . Reprogram Traps 2 | . . . . . 1 . 1 . . . . . . . . . . . . . . . . . . . . . . . . . . . Recall Reinforcements 1 | . . . . . . . . . . . . . . . . . . . . . . 1 . . . . . . . . . . . . Hauler Manifests 2 | . . . . . 1 . . . . . . . . . . . . . . . . . . . . 1 . . . . . . . . Registered Components 1 | . . . . . . . . . . . . . . . . . . . . . . . . . . 1 . . . . . . . . Zone Layout 7 | . . . . . 2 . 3 . . . . . . . . . . . . . . . . . 1 1 . . . . . . . . Garrison Registry 1 | . . . . . . 1 . . . . . . . . . . . . . . . . . . . . . . . . . . . . Patrol Navigation 1 | . . . . . . . . . . . . . . . . . . . . 1 . . . . . . . . . . . . . . Security Stations 1 | . . . . . . . . . . . . . . . . . . . . 1 . . . . . . . . . . . . . . Fabricator Hacks 16 | . . . . . . . . 4 . . . . . . . . . . 4 . 8 . . . . . . . . . . . . . Load Schematic 8 | . . . . . . . . 2 . . . . . . . . . . 2 . 4 . . . . . . . . . . . . . Build 8 | . . . . . . . . 2 . . . . . . . . . . 2 . 4 . . . . . . . . . . . . . Repair Station Hacks 24 | . 1 . . . 4 . 5 2 . . . . . . . . 1 . 1 . . . . . . 4 . . . . 4 2 . . Scan Component 13 | . 1 . . . 2 . 3 1 . . . . . . . . . . 1 . . . . . . 2 . . . . 2 1 . . Repair 10 | . . . . . 2 . 2 1 . . . . . . . . . . . . . . . . . 2 . . . . 2 1 . . Refit 1 | . . . . . . . . . . . . . . . . . 1 . . . . . . . . . . . . . . . . . Recycling Unit Hacks 7 | . . . . . 1 . 1 . . . . . . . . . . . 1 . 1 . . . . 2 . . . . 1 . . . Retrieve Components 7 | . . . . . 1 . 1 . . . . . . . . . . . 1 . 1 . . . . 2 . . . . 1 . . . Scanalyzer 11 | . . . . . 5 . 6 . . . . . . . . . . . . . . . . . . . . . . . . . . . Insert Component 4 | . . . . . 2 . 2 . . . . . . . . . . . . . . . . . . . . . . . . . . . Analyze 7 | . . . . . 3 . 4 . . . . . . . . . . . . . . . . . . . . . . . . . . . Garrison Access Hacks 7 | . . . . . 1 . . . . . . . 1 . . . 2 . 1 . 1 . . . . . . . . . . . 1 . Unlock Access 4 | . . . . . 1 . . . . . . . 1 . . . 1 . 1 . . . . . . . . . . . . . . . Seal Access 3 | . . . . . . . . . . . . . . . . . 1 . . . 1 . . . . . . . . . . . 1 . Unauthorized Hacks 35 | . 1 . . . 2 . 3 . . . . . . 2 . . 3 . 4 . 4 10 . . 1 3 . . . . 2 . . . Terminals 22 | . 1 . . . 1 . 2 . . . . . . 2 . . 3 . 1 . 1 8 . . 1 1 . . . . 1 . . . Track 4 | . . . . . . . . . . . . . . 1 . . . . . . . 3 . . . . . . . . . . . . Assimilate 2 | . . . . . . . . . . . . . . . . . 1 . . . . 1 . . . . . . . . . . . . Botnet 13 | . 1 . . . 1 . 2 . . . . . . 1 . . 2 . 1 . 1 2 . . . 1 . . . . 1 . . . Disrupt 1 | . . . . . . . . . . . . . . . . . . . . . . 1 . . . . . . . . . . . . Operators 1 | . . . . . . . . . . . . . . . . . . . . . . 1 . . . . . . . . . . . . Sabotage 1 | . . . . . . . . . . . . . . . . . . . . . . . . . 1 . . . . . . . . . Fabricators 1 | . . . . . . . . . . . . . . . . . . . . . 1 . . . . . . . . . . . . . Prioritize 1 | . . . . . . . . . . . . . . . . . . . . . 1 . . . . . . . . . . . . . Repair Stations . | . . . . . . . . . . . . . . . . . . . . . . . . . . . . . . . . . . . Recycling Units 11 | . . . . . 1 . 1 . . . . . . . . . . . 2 . 2 2 . . . 2 . . . . 1 . . . Reject 8 | . . . . . 1 . 1 . . . . . . . . . . . 1 . 1 1 . . . 2 . . . . 1 . . . Mask 3 | . . . . . . . . . . . . . . . . . . . 1 . 1 1 . . . . . . . . . . . . Scanalyzers . | . . . . . . . . . . . . . . . . . . . . . . . . . . . . . . . . . . . Garrison Access 1 | . . . . . . . . . . . . . . . . . . . 1 . . . . . . . . . . . . . . . Reprogram 1 | . . . . . . . . . . . . . . . . . . . 1 . . . . . . . . . . . . . . . Data Cores Recovered 1 | . . . . . . . . . . . . . . . . . 1 . . . . . . . . . . . . . . . . . Used 1 | . . . . . . . . . . . . . . . . . 1 . . . . . . . . . . . . . . . . . Hacking Detections 98 | . 6 . . . 12 3 13 9 . . . . 1 1 . . 10 1 5 3 7 7 1 . 2 5 . . . . 5 3 1 3 Full Trace Events 23 | . 1 . . . 2 3 4 3 . . . . 1 . . . 1 1 1 1 1 . . . 1 1 . . . . . . . 2 Feedback Events 4 | . . . . . . 1 . 1 . . . . . . . . . . . . 1 . . . . . . . . . . . . 1 Corruption 3 | . . . . . . 1 . 1 . . . . . . . . . . . . 1 . . . . . . . . . . . . . Hackware Fried 1 | . . . . . . . . . . . . . . . . . . . . . . . . . . . . . . . . . . 1 Feedback Blocked . | . . . . . . . . . . . . . . . . . . . . . . . . . . . . . . . . . . . Robot Schematics Acquired 8 | . . . . . . . . . . . 7 . . . . . . . . . . . . . . 1 . . . . . . . . Robots Built 8 | . . . . . . . . . . . . . . . . . . . . . 8 . . . . . . . . . . . . . Authchips 4 | . . . . . . . . . . . . . . . . . . . . . 4 . . . . . . . . . . . . . Time 132 | . . . . . . . . . . . . . . . . . . . . . 132 . . . . . . . . . . . . . Total Robot Build Rating 32 | . . . . . . . . . . . . . . . . . . . . . 32 . . . . . . . . . . . . . Part Schematics Acquired 14 | . . . . . 1 . 2 . . . 10 . . . . . . . 1 . . . . . . . . . . . . . . . Parts Built 7 | . . . . . . . . 4 . . . . . . . . . . 3 . . . . . . . . . . . . . . . Authchips 1 | . . . . . . . . . . . . . . . . . . . 1 . . . . . . . . . . . . . . . Time 238 | . . . . . . . . 81 . . . . . . . . . . 157 . . . . . . . . . . . . . . . Total Part Build Rating 33 | . . . . . . . . 20 . . . . . . . . . . 13 . . . . . . . . . . . . . . . Parts Repaired 9 | . . . . . 2 . 2 1 . . . . . . . . . . . . . . . . . 2 . . . . 1 1 . . Time 374 | . . . . . 102 . 82 38 . . . . . . . . . . . . . . . . . 47 . . . . 85 20 . . Parts Recycled . | . . . . . . . . . . . . . . . . . . . . . . . . . . . . . . . . . . . Recycled Matter . | . . . . . . . . . . . . . . . . . . . . . . . . . . . . . . . . . . . Retrieved Matter . | . . . . . . . . . . . . . . . . . . . . . . . . . . . . . . . . . . . Retrieved Components 23 | . . . . . 3 . 10 . . . . . . . . . . . 2 . 2 . . . . 4 . . . . 2 . . . Parts Scanalyzed 3 | . . . . . 1 . 2 . . . . . . . . . . . . . . . . . . . . . . . . . . . Part Schematics Acquired 3 | . . . . . 1 . 2 . . . . . . . . . . . . . . . . . . . . . . . . . . . Parts Damaged . | . . . . . . . . . . . . . . . . . . . . . . . . . . . . . . . . . . . Bothacking | -11 -10 -10 -10 -9 -8 -8 -8 -7 -7 -7 -7 -6 -6 -6 -5 -5 -5 -5 -5 -5 -5 -5 -5 -5 -5 -4 -4 -4 -4 -3 -3 -3 -2 -1 ------------ Run | Yrd Mat Min Exi Min Mat Gar Mat Fac Low Low Dat Pro Fac Gar Fac Was Fac Gar Fac Gar Fac Ext Cet Arc Hub Fac Upp Upp War Pro Res Qua Res Acc Used RIF Installer . | . . . . . . . . . . . . . . . . . . . . . . . . . . . . . . . . . . . Robots Hacked 8 | . . . 4 . . . . 1 . . 1 . . . . . . . . . . . . . . . . . 2 . . . . . Non-combat 4 | . . . 3 . . . . 1 . . . . . . . . . . . . . . . . . . . . . . . . . . Combat 4 | . . . 1 . . . . . . . 1 . . . . . . . . . . . . . . . . . 2 . . . . . Robot Hacks Applied 8 | . . . 4 . . . . 1 . . 1 . . . . . . . . . . . . . . . . . 2 . . . . . parse_system 7 | . . . 4 . . . . . . . 1 . . . . . . . . . . . . . . . . . 2 . . . . . no_distress 1 | . . . . . . . . 1 . . . . . . . . . . . . . . . . . . . . . . . . . . Relay Couplers Released 45 | . . . . . . 12 . 3 . . . . . 7 . . . . . 17 3 . . . . . . . . . . . 3 . Machine Destruction 42 | . . . . . . 12 . . . . . . . 7 . . . . . 17 3 . . . . . . . . . . . 3 . Programmers 3 | . . . . . . . . 3 . . . . . . . . . . . . . . . . . . . . . . . . . . Fabnet Peak Effective % . | . . . . . . . . . . . . . . . . . . . . . . . . . . . . . . . . . . . Robots Rewired 29 | . . . . . . 2 . . 2 . . . . . . . . . . . . 25 . . . . . . . . . . . . Allies Hacked 2 | . . . . . . . . . . . . . . . . . . . . . 2 . . . . . . . . . . . . . Hacks Repelled . | . . . . . . . . . . . . . . . . . . . . . . . . . . . . . . . . . . . Allies | -11 -10 -10 -10 -9 -8 -8 -8 -7 -7 -7 -7 -6 -6 -6 -5 -5 -5 -5 -5 -5 -5 -5 -5 -5 -5 -4 -4 -4 -4 -3 -3 -3 -2 -1 -------- Run | Yrd Mat Min Exi Min Mat Gar Mat Fac Low Low Dat Pro Fac Gar Fac Was Fac Gar Fac Gar Fac Ext Cet Arc Hub Fac Upp Upp War Pro Res Qua Res Acc Total Allies 66 | . . . . . . 2 . . 2 . . . . 1 . 1 1 . 3 . 10 41 5 . . . . . . . . . . . Largest Group 18 | . . . . . . 2 2 . 2 2 . . . . . 1 1 . 3 3 10 18 16 9 5 3 . . . . . . . . Highest-Rated Group 735 | . . . . . . 51 51 . 52 52 . . . . . 31 26 . 87 87 334 637 735 639 348 281 . . . . . . . . Highest-Rated Ally 159 | . . . . . . 31 31 . 32 32 . . . . . 31 26 . 29 29 37 159 137 137 96 96 . . . . . . . . Warlord Squad Rendezvous 4 | . . . . . . . . . . . . . . . . . 2 . . . 2 . . . . . . . . . . . . . Dakka 1 | . . . . . . . . . . . . . . . . . . . . . 1 . . . . . . . . . . . . . Muscle 1 | . . . . . . . . . . . . . . . . . 1 . . . . . . . . . . . . . . . . . Pyro 2 | . . . . . . . . . . . . . . . . . 1 . . . 1 . . . . . . . . . . . . . Total Orders 8 | . . . . . . . . . . . . . . 3 . . . . . . . . . 2 . . . 2 . . 1 . . . STAY 1 | . . . . . . . . . . . . . . . . . . . . . . . . 1 . . . . . . . . . . FOLLOW 1 | . . . . . . . . . . . . . . . . . . . . . . . . 1 . . . . . . . . . . EXPLORE 3 | . . . . . . . . . . . . . . . . . . . . . . . . . . . . 2 . . 1 . . . RETURN 3 | . . . . . . . . . . . . . . 3 . . . . . . . . . . . . . . . . . . . . Ally Attacks 555 | . . . . . . . 40 . 12 13 . . . 7 . 8 . . . 35 39 227 71 40 20 43 . . . . . . . . Total Damage 13320 | . . . . . . . 797 . 252 328 . . . 26 . 172 . . . 511 1295 5004 1522 1180 974 1259 . . . . . . . . Kills 92 | . . . . . . . 10 . 3 3 . . . . . . . . . 5 8 30 14 4 6 9 . . . . . . . . Allies Corrupted . | . . . . . . . . . . . . . . . . . . . . . . . . . . . . . . . . . . . Allies Melted 2 | . . . . . . . . . . . . . . . . . . . . 1 . . 1 . . . . . . . . . . . Intel | -11 -10 -10 -10 -9 -8 -8 -8 -7 -7 -7 -7 -6 -6 -6 -5 -5 -5 -5 -5 -5 -5 -5 -5 -5 -5 -4 -4 -4 -4 -3 -3 -3 -2 -1 ------- Run | Yrd Mat Min Exi Min Mat Gar Mat Fac Low Low Dat Pro Fac Gar Fac Was Fac Gar Fac Gar Fac Ext Cet Arc Hub Fac Upp Upp War Pro Res Qua Res Acc Robot Analysis Total 6 | . 3 . . . 2 . 1 . . . . . . . . . . . . . . . . . . . . . . . . . . . Derelict Logs Recovered 11 | . . 2 . . . . . . 2 . . 3 . . . . . . . . . . . . . . 3 1 . . . . . . Drone Launches 18 | . . . . . . . . . 4 . . . . 11 . . . . . . . . . . . . . 2 . . 1 . . . Drone Recoveries 15 | . . . . . . . . . 4 . . . . 10 . . . . . . . . . . . . . 1 . . . . . . Exploration | -11 -10 -10 -10 -9 -8 -8 -8 -7 -7 -7 -7 -6 -6 -6 -5 -5 -5 -5 -5 -5 -5 -5 -5 -5 -5 -4 -4 -4 -4 -3 -3 -3 -2 -1 ------------- Run | Yrd Mat Min Exi Min Mat Gar Mat Fac Low Low Dat Pro Fac Gar Fac Was Fac Gar Fac Gar Fac Ext Cet Arc Hub Fac Upp Upp War Pro Res Qua Res Acc Turns Passed 48648 | 11 1720 1423 479 258 3421 1481 4102 2727 2766 3653 219 2066 197 1130 332 108 1121 299 1406 1480 1241 1661 288 1776 196 1952 1718 1561 1291 527 1720 1426 1217 1675 Spaces Moved 20604 | 5 909 544 275 131 1181 471 1395 864 1100 1353 89 788 76 343 120 84 1219 205 655 710 595 753 153 289 106 796 1028 882 661 301 768 591 597 567 Core 155 | . . . . . . . . . . . . . . . . 69 26 . . . . . . 53 . . . . . . . . . 7 Treads 18362 | 5 909 544 275 40 838 471 1395 864 1100 1353 89 788 76 182 . . . 41 655 710 595 753 153 236 106 796 1028 882 661 301 768 591 597 560 Legs 296 | . . . . . . . . . . . . . . 161 120 15 . . . . . . . . . . . . . . . . . . Wheels 434 | . . . . 91 343 . . . . . . . . . . . . . . . . . . . . . . . . . . . . . Hover 1357 | . . . . . . . . . . . . . . . . . 1193 164 . . . . . . . . . . . . . . . . Flight . | . . . . . . . . . . . . . . . . . . . . . . . . . . . . . . . . . . . Fastest Speed 50 | 160 160 160 160 140 105 235 233 237 242 242 245 245 245 245 260 50 50 59 160 160 160 160 160 160 160 160 160 160 160 160 148 150 157 50 Average Speed 188 | 160 160 160 169 171 202 239 236 241 243 243 245 245 245 268 260 87 63 87 160 160 160 160 160 524 160 162 160 160 160 160 161 163 162 174 Slowest Speed 2150 | 160 160 240 240 320 240 240 241 245 245 245 245 245 245 330 260 260 76 240 160 160 160 160 245 2150 160 240 160 160 160 160 240 245 248 330 Overloaded Moves . | . . . . . . . . . . . . . . . . . . . . . . . . . . . . . . . . . . . Propulsion Burnouts . | . . . . . . . . . . . . . . . . . . . . . . . . . . . . . . . . . . . Robots Hopped . | . . . . . . . . . . . . . . . . . . . . . . . . . . . . . . . . . . . Cave-ins Triggered . | . . . . . . . . . . . . . . . . . . . . . . . . . . . . . . . . . . . Exploration Rate (%) 55 | 2 91 88 64 32 76 70 98 28 96 97 74 87 3 48 4 80 30 31 18 74 21 83 68 81 16 22 92 96 78 47 25 62 23 20 Regions Visited 34 Branch Regions 16 Pre-discovered Areas 6 | . . 1 1 . . . . . 1 . 1 . . . . . . . . . . . . . . . 2 . . . . . . . Known Exits Taken 19 | . . . . . 1 . 1 1 1 1 1 1 1 . . . 1 . 1 . 1 1 1 1 1 1 . . . . 1 1 1 . Unknown Exits Taken 9 | 1 1 1 1 1 . . . . . . . . . . . . . . . . . . . . . . 1 1 1 1 . . . . Scrap Searched 19 | . . 1 . . . . . . 3 7 . 1 . . . . . . . . . . . . . . 3 3 . 1 . . . . Spaces Dug 289 | . . 2 . . 6 3 18 21 8 1 . 40 . 12 1 6 6 . 9 1 7 3 . . . 12 . . 18 8 40 52 5 10 Terrain Destroyed 1621 | . 6 26 . 25 49 16 54 121 33 43 . 98 . 31 36 7 37 33 16 58 17 11 15 3 . 197 6 1 196 8 98 279 13 88 Melee 9 | . . 2 . . 1 . . . . 1 . . . 5 . . . . . . . . . . . . . . . . . . . . Projectile 347 | . . . . . . . 18 36 5 5 . 6 . 8 3 7 18 4 16 5 17 11 . 3 . 41 6 1 10 8 37 18 7 57 AOE 1265 | . 6 24 . 25 48 16 36 85 28 37 . 92 . 18 33 . 19 29 . 53 . . 15 . . 156 . . 186 . 61 261 6 31 Terrain Rammed . | . . . . . . . . . . . . . . . . . . . . . . . . . . . . . . . . . . . Walls Destroyed . | . . . . . . . . . . . . . . . . . . . . . . . . . . . . . . . . . . . Machines Disabled . | . . . . . . . . . . . . . . . . . . . . . . . . . . . . . . . . . . . Actions | -11 -10 -10 -10 -9 -8 -8 -8 -7 -7 -7 -7 -6 -6 -6 -5 -5 -5 -5 -5 -5 -5 -5 -5 -5 -5 -4 -4 -4 -4 -3 -3 -3 -2 -1 --------- Run | Yrd Mat Min Exi Min Mat Gar Mat Fac Low Low Dat Pro Fac Gar Fac Was Fac Gar Fac Gar Fac Ext Cet Arc Hub Fac Upp Upp War Pro Res Qua Res Acc Total 27615 | 7 1066 1040 286 154 1973 697 1996 1325 1152 1630 90 873 86 482 135 98 1519 312 943 917 790 1127 187 495 128 1181 1075 996 815 324 1093 900 775 948 Wait 3443 | . 43 440 . 14 475 80 340 251 16 191 . 40 1 39 2 . 178 53 194 92 103 119 6 114 16 121 27 59 41 1 123 119 48 97 Move 20576 | 4 908 543 274 130 1181 470 1394 863 1099 1352 88 787 76 342 120 83 1219 205 654 709 594 752 152 288 105 795 1027 881 660 300 767 591 596 567 Hop . | . . . . . . . . . . . . . . . . . . . . . . . . . . . . . . . . . . . Pick Up 275 | . 20 5 3 1 31 10 8 12 1 2 . . 2 10 . 1 12 7 8 15 5 14 4 5 1 19 4 5 7 1 18 17 14 13 Fast Attach 234 | . 5 1 . . 11 3 16 7 2 6 . . . 5 2 . 22 . 14 10 3 5 4 10 . 14 1 9 11 . 11 18 25 19 Attach 157 | . 2 1 . 1 4 7 4 7 1 1 . 1 2 1 2 . 6 7 5 4 8 6 . 3 . 32 1 4 1 . 7 11 5 23 Detach 89 | . 3 . . . 2 1 2 2 . 4 . . . 2 2 . 8 4 5 2 1 2 . 4 . 16 . 6 3 . 4 6 5 5 Swap 372 | 3 4 8 3 2 30 18 14 31 11 22 1 17 1 12 1 . 8 . 6 7 18 3 5 4 . 19 3 3 19 7 29 25 12 26 Drop 310 | . 15 5 2 . 32 6 21 13 2 7 . . . 14 1 1 22 6 8 4 . 10 10 14 . 8 . 7 19 1 25 15 33 9 Fire 1575 | . 60 23 . 6 112 64 111 89 17 44 . 28 . 35 5 13 44 15 43 73 47 45 6 53 1 149 12 20 51 14 100 93 37 165 Melee 37 | . . 5 4 . 11 2 . 1 . 1 1 . . 7 . . . . . . . . . . . . . . 2 . . . . 3 Ram 16 | . . . . . . . . . . . . . . . . . . 1 . . . . . . . . . . . . . . . 15 Kick . | . . . . . . . . . . . . . . . . . . . . . . . . . . . . . . . . . . . Crush 97 | . 6 6 . . 4 . 9 13 . . . . . . . . . 6 6 1 11 3 . . 5 8 . . . . 8 5 . 6 Escape Stasis 27 | . . . . . . 2 . . . . . . 4 15 . . . 6 . . . . . . . . . . . . . . . . Rewire 210 | . . . . . . 34 . . 3 . . . . . . . . 2 . . . 168 . . . . . 2 . . 1 . . . Trap 197 | . . 3 . . 80 . 77 36 . . . . . . . . . . . . . . . . . . . . 1 . . . . . Miscellaneous . | . . . . . . . . . . . . . . . . . . . . . . . . . . . . . . . . . . . Route ------- -11/Scrapyard -10/Materials (discovered 3 exits: [*Mat x2] / [*Min]) -10/Mines (discovered 3 exits: [*Mat x2] / *Exi) -10/Exiles -9/Mines -8/Materials (discovered 3 exits: *Fac x2 / Gar) -8/Garrison (discovered 3 exits: *Mat x3) -8/Materials (discovered 3 exits: *Fac x3) -7/Factory (discovered 5 exits: *Fac / Sto x2 / *Low x2) -7/Lower Caves -7/Lower Caves (discovered 2 exits: *Fac / *Dat) -7/Data Miner -6/Proximity Caves -6/Factory -6/Garrison -5/Factory -5/Waste -5/Factory (discovered 3 exits: *Fac / *Upp / Gar) -5/Garrison -5/Factory -5/Garrison (discovered 3 exits: *Fac x3) -5/Factory (discovered 4 exits: Upp x2 / *Ext x2) -5/Extension (discovered 2 exits: *Fac / *Cet) -5/Cetus (discovered 2 exits: *Fac / *Arc) -5/Archives (discovered 3 exits: *Fac / *Hub x2) -5/Hub_04(d) -4/Factory -4/Upper Caves -4/Upper Caves (discovered 2 exits: *Res / *War) -4/Warlord -3/Proximity Caves -3/Research (discovered 4 exits: *Res / *Arm / *Qua x2) -3/Quarantine -2/Research -1/Access (discovered 1 exit: Com) History --------- Turn | Location | Event 6 | -11/Scrapyard | Discovered new exit (range 3) 12 | -11/Scrapyard | Entered Materials 319 | -10/Materials | Build established: Mutant 632 | -10/Materials | Discovered new exit (range 7) 922 | -10/Materials | Discovered new exit (range 16) 1525 | -10/Materials | Discovered new exit (range 15) 1732 | -10/Materials | Entered Mines 1941 | -10/Mines | Learned location of Storage (-7) 1992 | -10/Mines | Found a hidden stash of uninstalled traps 2009 | -10/Mines | Assembled infested the area 2450 | -10/Mines | Found Prototype Device 2577 | -10/Mines | Discovered new exit (range 9) 2634 | -10/Mines | Discovered new exit (range 8) 2791 | -10/Mines | Learned 4 Materials zone layouts 2835 | -10/Mines | Received a Rocket Launcher from a helpful Derelict 3149 | -10/Mines | Deemed a non-threat by the Exiles lab entrance 3149 | -10/Mines | Discovered new exit (range 5) 3155 | -10/Mines | Entered Exiles 3200 | -10/Exiles | Met 8R-AWN 3225 | -10/Exiles | Met EX-HEX 3286 | -10/Exiles | Met EX-DEC 3404 | -10/Exiles | Learned location of Zion (-6) 3436 | -10/Exiles | Met EX-BIN 3507 | -10/Exiles | Build established: Scavenger-Mutant 3608 | -10/Exiles | Discovered new exit (range 10) 3634 | -10/Exiles | Entered Mines 3874 | -9/Mines | Discovered new exit (range 11) 3877 | -9/Mines | Build established: Mutant 3892 | -9/Mines | Entered Materials 3892 | -8/Materials | Evolved 4 slots: Propulsion x1, Utility x3 3893 | -8/Materials | Identified exit to Factory 4180 | -8/Materials | Build established: Scavenger-Mutant 4501 | -8/Materials | Central database locked down 5276 | -8/Materials | Identified Splice Drone Bay 6281 | -8/Materials | Discovered exit to Factory (range 8) 6724 | -8/Materials | Repaired Imp. Assault Rifle 6777 | -8/Materials | Repaired Imp. Assault Rifle 7092 | -8/Materials | First assault squad dispatched 7313 | -8/Materials | Identified exit to Garrison 7313 | -8/Materials | Entered Garrison 7607 | -8/Garrison | Garrison Relay disabled 7787 | -8/Garrison | Destroyed 7 combat bots 7866 | -8/Garrison | Triggered checkpoint 7870 | -8/Garrison | Lost 4 parts (2n2w) 7952 | -8/Garrison | Discovered new exit (range 8) 7980 | -8/Garrison | Discovered new exit (range 65) 7980 | -8/Garrison | Discovered new exit (range 87) 7980 | -8/Garrison | Discovered new exit (range 6) 8067 | -8/Garrison | Garrison Relay disabled 8489 | -8/Garrison | Found Powered Armor 8494 | -8/Garrison | Found Powered Armor 8497 | -8/Garrison | Found Powered Armor 8503 | -8/Garrison | Found Powered Armor 8626 | -8/Garrison | Garrison Relay disabled 8794 | -8/Garrison | Entered Materials 8794 | -8/Materials | Accompanied by 2 allies 9207 | -8/Materials | Build established: Mutant 9580 | -8/Materials | Core integrity fell below 50% 11194 | -8/Materials | First assault squad dispatched 11330 | -8/Materials | Discovered exit to Factory (range 5) 11809 | -8/Materials | Repaired Hvy. Assault Cannon 11855 | -8/Materials | Repaired Powered Armor 12087 | -8/Materials | Discovered exit to Factory (range 14) 12800 | -8/Materials | Discovered exit to Factory (range 14) 12896 | -8/Materials | Entered Factory 12896 | -7/Factory | Evolved 2 slots: Propulsion x1, Utility x1 12938 | -7/Factory | Found Powered Armor 12941 | -7/Factory | Found Powered Armor 13204 | -7/Factory | Build established: Scavenger-Mutant 13645 | -7/Factory | Identified exit to Storage 13645 | -7/Factory | Identified exit to Lower Caves 14244 | -7/Factory | Fabricated Adv. System Restoration Module (x2) 14551 | -7/Factory | Build established: Mutant 14614 | -7/Factory | Repaired Hvy. Assault Cannon 14869 | -7/Factory | Build established: Scavenger-Mutant 14896 | -7/Factory | First assault squad dispatched 15143 | -7/Factory | Fabricated Powered Armor? 15225 | -7/Factory | Discovered new exit (range 5) 15229 | -7/Factory | Identified exit to Factory 15570 | -7/Factory | Build established: Mutant 15623 | -7/Factory | Entered Lower Caves 15631 | -7/Lower Caves | Met a Warlord Commander 15632 | -7/Lower Caves | Learned location of Warlord (-4) 15640 | -7/Lower Caves | Found Encrypted Comm Array 16163 | -7/Lower Caves | Attracted the attention of an 0b10 outpost 16672 | -7/Lower Caves | Build established: Scavenger-Mutant 17007 | -7/Lower Caves | Learned 4 Factory zone layouts 17058 | -7/Lower Caves | Learned Factory security intel 17891 | -7/Lower Caves | Attracted the attention of an 0b10 checkpoint 18142 | -7/Lower Caves | Discovered new exit (range 13) 18379 | -7/Lower Caves | Identified exit to Lower Caves 18389 | -7/Lower Caves | Entered another Lower Caves area 18389 | -7/Lower Caves | Accompanied by 2 allies 18438 | -7/Lower Caves | Discovered exit to Factory (range 15) 18781 | -7/Lower Caves | Attacked by a faux Warlord 20215 | -7/Lower Caves | Discovered new exit (range 6) 20235 | -7/Lower Caves | Identified exit to Data Miner 22042 | -7/Lower Caves | Entered Data Miner 22042 | -7/Data Miner | Discovered new exit (range 6) 22089 | -7/Data Miner | Met Data Miner 22164 | -7/Data Miner | Learned location of Section 7 (-3) 22164 | -7/Data Miner | Acquired the access code to Warlord's prototype stash 22198 | -7/Data Miner | Received God Mode back door access code from Data Miner 22257 | -7/Data Miner | Identified exit to Proximity Caves 22261 | -7/Data Miner | Entered Proximity Caves 22266 | -6/Proximity Caves | Learned Factory emergency access door positions 22293 | -6/Proximity Caves | Learned 8 Factory zone layouts 23063 | -6/Proximity Caves | Attracted the attention of an 0b10 checkpoint 24327 | -6/Proximity Caves | Entered Factory 24327 | -6/Factory | Evolved 2 slots: Power x1, Utility x1 24524 | -6/Factory | Identified exit to Garrison 24524 | -6/Factory | Entered Garrison 24595 | -6/Garrison | Triggered checkpoint 24717 | -6/Garrison | Garrison Relay disabled 24978 | -6/Garrison | Spotted B-75 Beast 24987 | -6/Garrison | Triggered checkpoint 25026 | -6/Garrison | Destroyed B-75 Beast 25247 | -6/Garrison | Garrison Relay disabled 25399 | -6/Garrison | Discovered new exit (range 15) 25402 | -6/Garrison | Triggered checkpoint 25651 | -6/Garrison | Identified exit to Factory 25654 | -6/Garrison | Entered Factory 25654 | -5/Factory | Evolved 2 slots: Propulsion x1, Utility x1 25979 | -5/Factory | Found Exp. Targeting Computer 25986 | -5/Factory | Sucked down chute 25986 | -5/Factory | Entered Waste 25987 | -5/Waste | Met a frightened Derelict 26001 | -5/Waste | EMP discharged 26029 | -5/Waste | Spotted C-40 Crusher 26054 | -5/Waste | Crushed by Compactor (1 part destroyed, 2 dropped) 26057 | -5/Waste | Crushed by Compactor (1 part destroyed, 1 dropped) 26058 | -5/Waste | Released all parts (11) 26063 | -5/Waste | Spotted C-40 Crusher 26070 | -5/Waste | Spotted C-40 Crusher 26074 | -5/Waste | Spotted C-40 Crusher 26086 | -5/Waste | Discovered new exit (range 16) 26087 | -5/Waste | Spotted C-40 Crusher 26087 | -5/Waste | Spotted C-40 Crusher 26094 | -5/Waste | Entered Factory 26310 | -5/Factory | Discovered new exit (range 6) 26313 | -5/Factory | Identified exit to Factory 26319 | -5/Factory | Discovered new exit (range 15) 26348 | -5/Factory | Build established: Mutant 26417 | -5/Factory | Identified exit to Upper Caves 26676 | -5/Factory | Joined by Warlord Muscle squad 26814 | -5/Factory | Joined by Warlord Pyro squad 27015 | -5/Factory | Lost 3 allies 27215 | -5/Factory | Identified exit to Garrison 27215 | -5/Factory | Entered Garrison 27252 | -5/Garrison | Spotted B-75 Beast 27268 | -5/Garrison | Triggered checkpoint 27360 | -5/Garrison | Triggered checkpoint 27477 | -5/Garrison | System corruption reached 10% 27490 | -5/Garrison | Discovered new exit (range 10) 27503 | -5/Garrison | Identified exit to Factory 27514 | -5/Garrison | Entered Factory 27559 | -5/Factory | Spotted B-75 Beast 27576 | -5/Factory | Destroyed B-75 Beast 27907 | -5/Factory | Build established: Scavenger-Mutant 28428 | -5/Factory | Fabricated Huge Storage Unit? 28626 | -5/Factory | Fabricated Adv. System Restoration Module? 28739 | -5/Factory | Garrison activated, responded to threat 28854 | -5/Factory | Identified exit to Garrison 28920 | -5/Factory | Entered Garrison 28920 | -5/Garrison | Accompanied by 3 allies 28982 | -5/Garrison | Triggered checkpoint 29042 | -5/Garrison | Garrison Relay disabled 29064 | -5/Garrison | Learned Factory security intel 29223 | -5/Garrison | Triggered checkpoint 29424 | -5/Garrison | Triggered checkpoint 29439 | -5/Garrison | Garrison Relay disabled 29499 | -5/Garrison | Discovered new exit (range 9) 29510 | -5/Garrison | Identified exit to Factory 29760 | -5/Garrison | Phase Generator disabled 29828 | -5/Garrison | Triggered checkpoint 29903 | -5/Garrison | Lost 4 parts (1n3u) 30075 | -5/Garrison | Garrison Relay disabled 30128 | -5/Garrison | Discovered exit to Factory (range 15) 30210 | -5/Garrison | Triggered checkpoint 30318 | -5/Garrison | Garrison Relay disabled 30374 | -5/Garrison | Discovered exit to Factory (range 15) 30400 | -5/Garrison | Entered Factory 30481 | -5/Factory | Identified exit to Extension 30533 | -5/Factory | Fabricated Y-54 Guardian (x2) 30567 | -5/Factory | Fabricated Y-54 Guardian? 30623 | -5/Factory | Fabricated P-60 Hacker (x2) 30666 | -5/Factory | Fabricated P-60 Hacker? 30700 | -5/Factory | First assault squad dispatched 30759 | -5/Factory | Joined by Warlord Pyro squad 30848 | -5/Factory | Garrison activated, responded to threat 30880 | -5/Factory | Lost 10 allies 31306 | -5/Factory | Lost 3 parts (2p1n) 31391 | -5/Factory | Joined by Warlord Dakka squad 31638 | -5/Factory | Build established: Hacker-Mutant 31641 | -5/Factory | Entered Extension 31740 | -5/Extension | Rescued a captive Derelict 31815 | -5/Extension | Core integrity fell below 50% 32252 | -5/Extension | Rescued a captive Derelict 32253 | -5/Extension | Rescued a captive Derelict 32319 | -5/Extension | Rescued a captive Derelict 32320 | -5/Extension | Rescued a captive Derelict 32374 | -5/Extension | Rescued a captive Derelict 32374 | -5/Extension | Rescued a captive Derelict 32526 | -5/Extension | Build established: Commander-Mutant 32572 | -5/Extension | Spotted B-75 Beast 32592 | -5/Extension | Allies destroyed B-75 Beast 32596 | -5/Extension | Spotted B-75 Beast 32604 | -5/Extension | Allies destroyed B-75 Beast 32644 | -5/Extension | Lost 15 allies 32728 | -5/Extension | Rescued a captive Derelict 32729 | -5/Extension | Rescued a captive Derelict 32757 | -5/Extension | Rescued a captive Derelict 32775 | -5/Extension | Rescued A7 32798 | -5/Extension | Rescued a captive Derelict 32799 | -5/Extension | Rescued a captive Derelict 32879 | -5/Extension | Build established: Hacker-Mutant 33029 | -5/Extension | Rescued a captive Derelict 33168 | -5/Extension | Rescued a captive Derelict 33168 | -5/Extension | Rescued a captive Derelict 33206 | -5/Extension | Lost 7 allies 33260 | -5/Extension | Discovered exit to Factory (range 10) 33261 | -5/Extension | Discovered new exit (range 6) 33268 | -5/Extension | Build established: Commander-Mutant 33300 | -5/Extension | Identified exit to Cetus 33302 | -5/Extension | Entered Cetus 33302 | -5/Cetus | Accompanied by 16 allies (A7) 33307 | -5/Cetus | Acquired a Cetus Manufacturing Module code from A7 33324 | -5/Cetus | Spotted Cetus Guard 33324 | -5/Cetus | Spotted Cetus Guard 33328 | -5/Cetus | Allies destroyed Cetus Guard 33328 | -5/Cetus | Spotted Cetus Guard 33332 | -5/Cetus | Spotted Cetus Guard 33336 | -5/Cetus | Allies destroyed Cetus Guard 33339 | -5/Cetus | Allies destroyed Cetus Guard 33344 | -5/Cetus | Allies destroyed Cetus Guard 33371 | -5/Cetus | Lost 3 allies 33402 | -5/Cetus | Escorted A7 to Cetus Mainframe 33414 | -5/Cetus | Started Cetus Manufacturing Module 33433 | -5/Cetus | Discovered new exit (range 15) 33439 | -5/Cetus | Manufactured an Enhanced Grunt 33464 | -5/Cetus | Manufactured an Enhanced Grunt 33466 | -5/Cetus | Spotted Cetus Guard 33467 | -5/Cetus | Spotted Cetus Guard 33469 | -5/Cetus | Spotted Cetus Guard 33470 | -5/Cetus | Spotted Cetus Guard 33486 | -5/Cetus | Allies destroyed Cetus Guard 33486 | -5/Cetus | Allies destroyed Cetus Guard 33487 | -5/Cetus | Allies destroyed Cetus Guard 33489 | -5/Cetus | Manufactured an Enhanced Grunt 33492 | -5/Cetus | Destroyed Cetus Guard 33493 | -5/Cetus | Discovered exit to Factory (range 16) 33503 | -5/Cetus | Met Revision 17 33514 | -5/Cetus | Manufactured an Enhanced Grunt 33517 | -5/Cetus | Lost 8 allies 33539 | -5/Cetus | Manufactured an Enhanced Grunt 33543 | -5/Cetus | Cetus Manufacturing Module disabled 33579 | -5/Cetus | Identified exit to Archives 33590 | -5/Cetus | Entered Archives 33590 | -5/Archives | Accompanied by 9 allies (A7) 33595 | -5/Archives | Received a hacking code to weaken MAIN.C 33665 | -5/Archives | Lost 3 allies 33793 | -5/Archives | Discovered new exit (range 14) 33859 | -5/Archives | Discovered exit to Factory (range 16) 34095 | -5/Archives | Found Prototype Device 34095 | -5/Archives | Identified Exp. Thermal Shield 34342 | -5/Archives | Build established: Hacker-Mutant 35280 | -5/Archives | Discovered new exit (range 16) 35363 | -5/Archives | Identified exit to Hub_04(d) 35366 | -5/Archives | Entered Hub_04(d) 35366 | -5/Hub_04(d) | Accompanied by 5 allies 35473 | -5/Hub_04(d) | Discovered exit to Factory (range 8) 35547 | -5/Hub_04(d) | Network Hub disabled 35562 | -5/Hub_04(d) | Spotted Lightning 35562 | -5/Hub_04(d) | Spotted Lightning 35562 | -5/Hub_04(d) | Entered Factory 35562 | -4/Factory | Accompanied by 3 allies 35562 | -4/Factory | Evolved 2 slots: Propulsion x1, Utility x1 35840 | -4/Factory | Found Unknown Device 35840 | -4/Factory | Identified Launcher Loader 36155 | -4/Factory | Repaired Imp. Cooling System 36182 | -4/Factory | Repaired Adv. Sensor Array 36593 | -4/Factory | First assault squad dispatched 36756 | -4/Factory | Lost 4 parts (1p3u) 36883 | -4/Factory | Build established: Scavenger-Mutant 37139 | -4/Factory | Lost 4 parts (1p1n1u1w) 37261 | -4/Factory | Discovered new exit (range 9) 37317 | -4/Factory | Identified exit to Upper Caves 37319 | -4/Factory | Lost 6 parts (1n3u2w) 37328 | -4/Factory | Incoming assault squad redirected 37514 | -4/Factory | Entered Upper Caves 37581 | -4/Upper Caves | Build established: Hacker-Mutant 37924 | -4/Upper Caves | Attacked by a delusional Derelict stockpiling parts 38280 | -4/Upper Caves | Learned location of Testing (-2) 38779 | -4/Upper Caves | Discovered new exit (range 8) 39115 | -4/Upper Caves | Learned location of Quarantine (-3) 39117 | -4/Upper Caves | Learned Research terminal intel 39232 | -4/Upper Caves | Entered another Upper Caves area 39234 | -4/Upper Caves | Attracted the attention of an 0b10 checkpoint 39404 | -4/Upper Caves | Discovered new exit (range 13) 40017 | -4/Upper Caves | Discovered new exit (range 12) 40793 | -4/Upper Caves | Entered Warlord 41410 | -4/Warlord | Warned about trapping base interior 41575 | -4/Warlord | Met Warlord 41594 | -4/Warlord | Warlord's base attacked by MAIN.C 41615 | -4/Warlord | Opened Warlord's prototype stash 41621 | -4/Warlord | Found Prototype Reactor 41621 | -4/Warlord | Identified Vortex Chain Reactor 41629 | -4/Warlord | Found Exp. Targeting Computer 41884 | -4/Warlord | Destroyed 8 combat bots 41944 | -4/Warlord | Warlord forces counterattacked 41985 | -4/Warlord | Spotted Striker 42008 | -4/Warlord | Spotted Executioner 42018 | -4/Warlord | Spotted Executioner 42023 | -4/Warlord | Destroyed Executioner 42038 | -4/Warlord | Found Exp. Core Analyzer 42044 | -4/Warlord | Destroyed 12 combat bots 42055 | -4/Warlord | Discovered new exit (range 15) 42057 | -4/Warlord | Lost 8 allies 42084 | -4/Warlord | Entered Proximity Caves 42594 | -3/Proximity Caves | Discovered new exit (range 10) 42611 | -3/Proximity Caves | Entered Research 42611 | -3/Research | Evolved 2 slots: Power x1, Utility x1 42612 | -3/Research | Loaded intel: 22 terminal locations 43030 | -3/Research | Found Prototype Device 43030 | -3/Research | Identified Exp. Shield Generator 43179 | -3/Research | Discovered new exit (range 21) 43253 | -3/Research | Identified exit to Research 43350 | -3/Research | Repaired Centrium Heavy Treads? 43375 | -3/Research | Spotted B-86 Titan 43606 | -3/Research | Found Prototype Device 43635 | -3/Research | Identified Exp. EM Disruption Field 44057 | -3/Research | Discovered new exit (range 9) 44068 | -3/Research | Identified exit to Armory 44126 | -3/Research | Destroyed 9 combat bots 44147 | -3/Research | Identified exit to Quarantine 44331 | -3/Research | Entered Quarantine 44365 | -3/Quarantine | Lost 4 parts (1p2u1w) 44385 | -3/Quarantine | Found Alien Impact Weapon 44488 | -3/Quarantine | Found Alien Artifact 44639 | -3/Quarantine | Cryocooling Duct disabled 44647 | -3/Quarantine | Build established: Scavenger-Mutant 44654 | -3/Quarantine | Ambient heat levels rising (+20) 44654 | -3/Quarantine | Non-combat units ordered to evacuate 44730 | -3/Quarantine | Found Exp. Thermal Shield 44763 | -3/Quarantine | Repaired Hvy. Siege Treads 44913 | -3/Quarantine | Found Alien Artifact 44913 | -3/Quarantine | Identified Dimensional Node Initializer 44913 | -3/Quarantine | Initialized slip node 44930 | -3/Quarantine | Found Dimensional Node Initializer 44940 | -3/Quarantine | Found Alien Artifact 44946 | -3/Quarantine | Found Alien Artifact 45081 | -3/Quarantine | First assault squad dispatched 45190 | -3/Quarantine | Lost 4 parts (2p1u1w) 45232 | -3/Quarantine | Cryocooling Duct disabled 45247 | -3/Quarantine | Ambient heat levels rising (+20) 45247 | -3/Quarantine | Combat units ordered to evacuate 45297 | -3/Quarantine | Cryocooling Duct disabled 45312 | -3/Quarantine | Ambient heat levels rising (+20) 45347 | -3/Quarantine | Quarantine Guard activated 45438 | -3/Quarantine | Build established: Hacker-Mutant 45452 | -3/Quarantine | Found Alien Artifact 45452 | -3/Quarantine | Identified Phase Redirector 45599 | -3/Quarantine | Spotted Quarantine Guard 45607 | -3/Quarantine | Spotted Quarantine Guard 45634 | -3/Quarantine | Destroyed Quarantine Guard 45665 | -3/Quarantine | System corruption reached 10% 45701 | -3/Quarantine | Destroyed Quarantine Guard 45722 | -3/Quarantine | Spotted Quarantine Guard 45744 | -3/Quarantine | Discovered exit to Research (range 3) 45744 | -3/Quarantine | Spotted Quarantine Guard 45757 | -3/Quarantine | Entered Research 45757 | -2/Research | Warlord forces began assault on 0b10 45757 | -2/Research | Evolved 2 slots: Utility x2 45773 | -2/Research | Found Gamma Bomb Array 45782 | -2/Research | Distinguished unit "Metalheads" dispatched to help 45867 | -2/Research | Research machine network offline 46104 | -2/Research | Borebot progress halted 46225 | -2/Research | Initialized slip node 46392 | -2/Research | Spotted Striker 46404 | -2/Research | Spotted Striker 46413 | -2/Research | Destroyed Striker 46423 | -2/Research | Spotted Striker 46432 | -2/Research | Destroyed Striker 46434 | -2/Research | Found Exp. Core Analyzer 46439 | -2/Research | Spotted Striker 46444 | -2/Research | Spotted Executioner 46453 | -2/Research | Destroyed Striker 46463 | -2/Research | Destroyed Executioner 46463 | -2/Research | Lost 6 allies 46496 | -2/Research | Destroyed 8 combat bots 46506 | -2/Research | Found Exp. Core Analyzer 46556 | -2/Research | Spotted Striker 46562 | -2/Research | Destroyed Striker 46704 | -2/Research | Build established: Scavenger-Mutant 46711 | -2/Research | Found Prototype Device 46711 | -2/Research | Identified Exp. Force Field 46804 | -2/Research | Spotted Striker 46811 | -2/Research | Spotted Striker 46815 | -2/Research | Destroyed Striker 46818 | -2/Research | Destroyed Striker 46851 | -2/Research | Discovered new exit (range 3) 46877 | -2/Research | Identified exit to Access 46900 | -2/Research | Lost 3 allies 46900 | -2/Research | Found Prototype Launcher 46938 | -2/Research | Identified Enh. Gamma Bomb Array 46974 | -2/Research | Entered Access 46974 | -1/Access | Evolved 2 slots: Utility x1, Weapon x1 47325 | -1/Access | Build established: Hacker-Gunner 47420 | -1/Access | Destroyed 9 combat bots 47522 | -1/Access | First assault squad dispatched 47631 | -1/Access | Destroyed 7 combat bots 47732 | -1/Access | Identified exit to Command 48099 | -1/Access | Garrison activated, responded to threat 48222 | -1/Access | Lost 7 parts (2p1n3u1w) 48395 | -1/Access | Destroyed 7 combat bots 48414 | -1/Access | Identified Core Stripper 48579 | -1/Access | Imp. System Shield fried by hacking feedback 48582 | -1/Access | Spotted B-99 Colossus 48639 | -1/Access | Core integrity fell below 50% 48647 | -1/Access | Core integrity fell below 20% 48649 | -1/Access | Destroyed by G-73 Enforcer with Phase Gun Last Messages --------------- 48638_ Slammed into L-61 Swordsman. 48641_ Imp. Core Shielding destroyed. 48642_ Slammed into L-61 Swordsman. 48643_ Slammed into B-99 Colossus. 48643_ L-61 Swordsman knocked back. 48643_ Imp. Core Shielding destroyed. 48643_ Knocked back. 48643_ Slug penetrates M-36 Artificer. 48643_ Penetrated by Slug. 48643_ Slug penetrates Wall. 48644_ Slammed into B-99 Colossus. 48644_ Destabilizing: Core damaged (-80). 48645_ Slammed into B-99 Colossus. 48647_ Knocked back. 48647_ Penetrated by Slug. 48647_ Slug penetrates L-61 Swordsman. 48647_ M-36 Artificer repairs L-61 Swordsman. 48648_ B-99 Colossus activates siege mode. 48648_ Slammed into B-99 Colossus. 48649_ M-36 Artificer repairs L-61 Swordsman. Map ----- +----------------------------------------------------+ | ?????????????????????????????????????????????????? | | ?????????????????????????????????????????????????? | | ?????????????????????????????????????????????????? | | ?????????????????????????????????????????????????? | | ?????????????????????????????????????????????????? | | ?????????????????????????????????????????????????? | | ?????????????????????????????????????????????????? | | ?????????????????????????????????????????????????? | | ?????????????????????????????????????????????????? | | ?????????????????????????????????????????????????? | | ?????????????????????????###?????????????????????? | | ????????????????????????? ?????????????????????? | | ?????????????????????????# ?????????????????????? | | ?????????????????????????# ###??????????????????? | | ?????????????????????????# ??????????????????? | | ?????????????????????????# ???????????????????? | | ?????????????????????????# ???????????????????? | | ?????????????????????????# #???????????????????? | | ?????????????????????????# #???????????????????? | | ???? ??????????????????# #???????????????????? | | ???? ??????????????????# #???????????????????? | | ???# ??????????????????#k #???????????????????? | | ???# ########??????????#[ #???????????????????? | | ???# ##+#########[[%#???????????????????? | | ???# glm]%#???????????????????? | | ???# g BB@l!!#???????????????????? | | ???# =BB!l]!#???????????????????? | | ????# [ ;######g##???????????????????? | | ##??# "" #######/####?????????????????? | | ##?# =% "" " !/! #?????????????????? | | #?# Y" " ] #?????????????????? | | #?# "" """ %#?????????????????? | | #?# " "#" #?????????????????? | | #?# ! "## #?????????????????? | | ### % #?# #?????????????????? | | %+! %% % #?# #?????????????????? | | ####"" """####### #?# #?????????????????? | | [ #??#""F"""#???### ### % #????????????>????? | | #??# """""#???# ##"#######?????????????????? | | ###??########???# #?????????????????????? | | % ??????? #?????????????????????? | | " ??? # #?????????????????????? | | ??? # #### #?????????????????????? | | ? ? ?###+###??? #?????????????????????? | | ?? ?? ???????????? #?????????????????????? | | ??? ??? ??????????????#?????????????????????? | | ????????### ?????????????????????????????????????? | | ??????????+??????????????????????????????????????? | | ?????????????????????????????????????????????????? | | ?????????????????????????????????????????????????? | +----------------------------------------------------+ Best States ------------- Heat Dissipation 138 Coolant Potential 120 Energy Generation 69 Energy Capacity 910 Matter Stores 300 Matter Capacity 300 Sight Range 16 Robot Scan Range 19 Terrain Scan Density 10 Jamming Range 16 Power Amplification 30 Base Temperature (-) 200 Corruption Block 28 Armor Coverage 1650 Resistance: KI 20 Resistance: TH 30 Resistance: EM 20 Core Shielding 30 Propulsion Shielding 66 Weapon Cycling 20 Phase Shifting 15 Evasion (%) 55 Targeting Accuracy 12 Target Analysis 8 Core Analysis 12 Recoil Reduction 6 Kinecelleration 40 Offensive Hacking 26 Defensive Hacking 14 Authchip Count 10 Item Schematics ----------------- Med. Insulated Plating | -8/Materials | Scanalyzed Powered Armor | -8/Materials | Scanalyzed Adv. System Restoration Module | -8/Materials | Scanalyzed Combat Drone Bay | -7/Data Miner | Free Lgt. Regenerative Plating | -7/Data Miner | Free Cld. Cesium-ion Thruster | -7/Data Miner | Free Exp. Power Shielding | -7/Data Miner | Free Imp. Heavy Machine Gun | -7/Data Miner | Free Linear Gravjet | -7/Data Miner | Free Recoil Nullifier | -7/Data Miner | Free Imp. Plasma Cutter | -7/Data Miner | Free Adv. Target Analyzer | -7/Data Miner | Free Antimatter Reactor | -7/Data Miner | Free Huge Storage Unit | -5/Factory | Hacked Robot Schematics ------------------ S-27 Virus | -7/Data Miner | Free G-47 Trooper | -7/Data Miner | Free H-55 Commando | -7/Data Miner | Free L-41 Fighter | -7/Data Miner | Free Y-54 Guardian | -7/Data Miner | Free X-72 Disruptor | -7/Data Miner | Free P-60 Hacker | -7/Data Miner | Free G-67 Veteran | -4/Factory | Hacked Fabricated ------------ Adv. System Restoration Module | x2 | -7/Factory Powered Armor | x2 | -7/Factory Huge Storage Unit | x1 | -5/Factory | Authchip Adv. System Restoration Module | x2 | -5/Factory Y-54 Guardian | x2 | -5/Factory | Authchip Y-54 Guardian | x2 | -5/Factory | Authchip P-60 Hacker | x2 | -5/Factory | Authchip P-60 Hacker | x2 | -5/Factory | Authchip Alien Tech Used ----------------- Dimensional Node Initializer Phase Redirector Core Stripper Achievements -------------- None Challenges ------------ None Game ------ Seed HugeArmoredWheel Manual? 0 Play Time 04:36:59 Cumulative 1449.6 hours Start 2024.01.13 @ 01:41:41 End 2024.01.13 @ 21:57:11 Sessions 7 Manual Loads 0 Difficulty Rogue Special Mode None Game No. 1016 Rogue 1012 Adventurer 4 Explorer 0 Win Type - Total 176 Types 131/11/11/7/2/1/3/6/4 Lore% 95 Gallery% 98 Achievement% 98 Wizard Run 0 Options --------- ASCII 0 Keyboard 1 Movement Vi Keybinds 0 Fullscreen 0 Font 20/X11 Map View 76x50 Zoom Use 0% Tactical HUD 1 Map Filters NONE Filters NONE Steam 1 RUN: fd1100f9-67c0-4417-a639-7a5638e208a2